DATE OF TRANSACTION,LA DEPARTMENT INCURRING SPEND,BENEFICIARY,GROSS AMOUNT,SUMMARY OF PURPOSEOF SPEND,MERCHANT CATEGORY
28/08/2020,ACL CENTRAL EXPENDITURE,WWW.UK.INSIGHT.COM,"1,693.79",COMPUTER CONSUMABLES,DIRECT MARKETING-CATALOG MERCHANTS
28/08/2020,COVID19 PPE,SUMMIT HYGEINE,846.00,EQUIPMENT,"CLEANING AND MAINTENANCE, JANITORIAL SERVICES"
28/08/2020,SOLD ESTATES MANAGEMENT,CROWBOROUGH COACHW,656.21,VEHICLE REPAIRS AND MAINTENANCE,AUTOMOTIVE SERVICE SHOPS
28/08/2020,SE LAC AND LEAVING CARE,ARGOS LTD,538.40,EQUIPMENT,DISCOUNT STORES
28/08/2020,BIKEABILITY - CYCLE TRAINING,REPROPOINT,518.40,EQUIPMENT,STATIONERY/OFFICE SUPPLIES/PRINTING & WRITING PAP.
28/08/2020,TRANSPORT,WWW.TEST-METER.CO.UK,356.34,VEHICLE REPAIRS AND MAINTENANCE,"COMMERCIAL EQUIPMENT, NOT ELSEWHERE CLASSIFIED"
28/08/2020,COVID19,WWW.CONNECT2CLEANROOMS,293.38,EQUIPMENT,DENTAL/LAB/MED/OPHTHALMIC HOSP EQUIP & SUPPLIES
28/08/2020,TRANSPORT,FIXINGS & POWERTOOL CE,273.00,DAY TO DAY MAINTENANCE,"BUILDING MATERIALS, LUMBER STORES"
29/08/2020,DEPUTYSHIP TEAM,AXA INSURANCE,309.71,3RD PARTY PAYMENTS PRIVATE INDIV,DIRECT MARKETING-CONTINUITY/SUBSCRIPTION MERCHANTS
31/08/2020,MALLOW CRESCENT,PARKDEAN RESORTS H,319.00,EDUC VISITS/HOLS/CAMPS/TOYS,CAMPGROUNDS AND TRAILER PARKS
31/08/2020,COMMUNICATIONS,FACEBK Y8PQHVJ2S2,289.99,ADVERTISING (STATUTORY NOTICES),ADVERTISING SERVICES
01/09/2020,DEVELOPMENT TEAM,WWW.TXTLOCAL.COM,"1,260.00",SUBSCRIPTIONS,"CONSULTING, MANAGEMENT, AND PUBLIC RELATIONS SVCS"
01/09/2020,TRANSPORT,AMZNMKTPLACE,429.00,EQUIPMENT,MISCELLANEOUS AND SPECIALTY RETAIL STORES
01/09/2020,MALLOW CRESCENT,FURNITURE VILLAGE,300.00,FURNITURE,"EQUIP, FURNITURE, HOME FURNSHNGS STRS (EXCPT APPL)"
01/09/2020,MALLOW CRESCENT,FURNITURE VILLAGE,260.00,FURNITURE,"EQUIP, FURNITURE, HOME FURNSHNGS STRS (EXCPT APPL)"
02/09/2020,RECRUITMENT,INDEED,608.45,STAFF ADVERTISING ,BUSINESS SERVICES-NOT ELSEWHERE CLASSIFIED
02/09/2020,DOWNLANDS COUNTRYSIDE PROJECT,LAND SKILLS,369.80,TRAINING USING EXTERNAL PROVIDERS,SCHOOLS & EDUCATIONAL SVC-NOT ELSEWHERE CLASSIFIED
02/09/2020,DOWNLANDS COUNTRYSIDE PROJECT,LAND SKILLS,369.80,TRAINING EXPENSES EXTERNAL GENERAL,SCHOOLS & EDUCATIONAL SVC-NOT ELSEWHERE CLASSIFIED
02/09/2020,COVID19,HEALTHCARE EQUIPMENT &,367.20,CLEANING MATERIALS,"HEALTH PRACTITIONERS, MEDICAL SRVCS-NOT ELSEWHERE"
02/09/2020,SE LAC AND LEAVING CARE,ASDA GEORGE COM LEEDS,359.85,EQUIPMENT,"GROCERY STORES, SUPERMARKETS"
02/09/2020,CHEYNE WALK COMMUNITY HOME,BOW PROPERTY LTD,336.98,EDUC VISITS/HOLS/CAMPS/TOYS,REAL ESTATE AGENTS AND MANAGERS-RENTALS
02/09/2020,BURBANK COMMUNITY HOME,SAINSBURYS TO YOU 0686,290.39,PURCHASE OF FOOD (RAW MATERIALS),"GROCERY STORES, SUPERMARKETS"
02/09/2020,APPLEWOOD,GAINSBOROUGH BATHS LIM,282.00,EQUIPMENT,MISCELLANEOUS AND SPECIALTY RETAIL STORES
03/09/2020,RECRUITMENT,INDEED,600.00,STAFF ADVERTISING ,BUSINESS SERVICES-NOT ELSEWHERE CLASSIFIED
03/09/2020,INSTRUMENT HIRE SHOP,WWW.ALDAUTOMOTIVE.CO.U,364.58,HIRE OF VEHICLES,BUSINESS SERVICES-NOT ELSEWHERE CLASSIFIED
03/09/2020,COVID19 PPE,AMZNMKTPLACE,350.79,EQUIPMENT,MISCELLANEOUS AND SPECIALTY RETAIL STORES
03/09/2020,SOLD ESTATES MANAGEMENT,CENTRAL SOURCE LTD,312.19,DAY TO DAY MAINTENANCE,MISCELLANEOUS PUBLISHING AND PRINTING
03/09/2020,ABBEYWOOD,AMZNMKTPLACE,309.98,EQUIPMENT,MISCELLANEOUS AND SPECIALTY RETAIL STORES
03/09/2020,TRANSPORT,PAYPAL  CROSS CLEAN,300.00,VEHICLE REPAIRS AND MAINTENANCE,"CLEANING AND MAINTENANCE, JANITORIAL SERVICES"
03/09/2020,SE LAC AND LEAVING CARE,ARGOS LTD,271.45,EQUIPMENT,DISCOUNT STORES
03/09/2020,TRANSPORT,FIXINGS & POWERTOOL CE,264.06,EQUIPMENT,"BUILDING MATERIALS, LUMBER STORES"
03/09/2020,NE LAC AND LEAVING CARE,ARGOS LTD,259.99,EQUIPMENT,DISCOUNT STORES
04/09/2020,ASSET DATA MANAGER,BUILDING&ENGINEERING S,"4,999.00",COMPUTER SOFTWARE,"BOOKS,PERIODICALS AND NEWSPAPERS"
04/09/2020,COVID19,SENTURA GROUP,"2,448.00",OPERATIONAL FIRE EQUIPMENT,HARDWARE EQUIPMENT AND SUPPLIES
04/09/2020,ASSET DATA MANAGER,BUILDING&ENGINEERING S,689.00,COMPUTER SOFTWARE,"BOOKS,PERIODICALS AND NEWSPAPERS"
04/09/2020,KARIBU COMMUNITY HOME,SAINSBURYS TO YOU 0683,424.89,PURCHASE OF FOOD (RAW MATERIALS),"GROCERY STORES, SUPERMARKETS"
04/09/2020,WOODLANDS COMMUNITY HOME,MARK HARROD LTD,376.80,FIXTURES AND FITTINGS,SPORTING GOODS STORES
04/09/2020,HR TRAINING,CIPD INTEGRA,256.00,TRAINING EXPENSES EXTERNAL GENERAL,PROFESSIONAL SERVICES-NOT ELSEWHERE CLASSIFIED
05/09/2020,SW EDUCATION PSYCHOLOGISTS,C2E755400001G UKVI,"2,199.00",FEES,GOVERNMENT SERVICES-NOT ELSEWHERE CLASSIFIED
07/09/2020,TRANSPORT,AMZNMKTPLACE AMAZON.CO,967.89,FURNITURE,MISCELLANEOUS AND SPECIALTY RETAIL STORES
07/09/2020,ACL CENTRAL EXPENDITURE,PAYPAL  WARMGLASSLT,804.96,EQUIPMENT,"GLASS, PAINT, WALLPAPER STORES"
07/09/2020,ACL CENTRAL EXPENDITURE,PAYPAL  WARMGLASSLT,593.90,EQUIPMENT,"GLASS, PAINT, WALLPAPER STORES"
07/09/2020,TRANSPORT,PAYPAL  AO RETAIL EBAY,432.00,EQUIPMENT,ELECTRONIC SALES
07/09/2020,CHALKMEAD,AMZNMKTPLACE AMAZON.CO,271.19,UPKEEP OF GROUNDS,MISCELLANEOUS AND SPECIALTY RETAIL STORES
08/09/2020,TRANSPORT,AMZNMKTPLACE,879.90,FURNITURE,MISCELLANEOUS AND SPECIALTY RETAIL STORES
08/09/2020,PARKING TEAM,AMZNMKTPLACE AMAZON.CO,513.75,PRINTING,MISCELLANEOUS AND SPECIALTY RETAIL STORES
08/09/2020,RUTH HOUSE,FOWLES CRUSHED CONCRET,378.00,EQUIPMENT,"UTLTS-ELCTRC, GAS, HEATING OIL, SANITARY, WATER"
08/09/2020,RECRUITMENT,GOOGLE  ADS5533019982,360.27,STAFF ADVERTISING ,ADVERTISING SERVICES
08/09/2020,TRANSPORT,AMZNMKTPLACE,351.96,FURNITURE,MISCELLANEOUS AND SPECIALTY RETAIL STORES
08/09/2020,PE/CDT MAINTENANCE OVERHEADS,UNIVERSAL SERVICES (SP,303.36,ITEMS PURCHASED FOR RE-SALE,"ATHLTIC FIELDS,COMMRCL SPRT,SPRT CLBS,SPRT PROMOTR"
08/09/2020,COVID19,AMZNMKTPLACE AMAZON.CO,269.25,EQUIPMENT,MISCELLANEOUS AND SPECIALTY RETAIL STORES
08/09/2020,COVID19,AMZNMKTPLACE,269.25,EQUIPMENT,MISCELLANEOUS AND SPECIALTY RETAIL STORES
09/09/2020,NW NIL RECOURSE TO PUBLIC FUNDS CARE,HOUSE OF FISHER LTD,"1,829.50",INDEPENDENT LIVING PLACEMENTS,"LODGING-HOTELS,MOTELS,RESORTS-NOT CLASSIFIED"
09/09/2020,EMPLOYEE SERVICES,RNE755800012E UKVI,"1,476.00",LICENCE FEES,GOVERNMENT SERVICES-NOT ELSEWHERE CLASSIFIED
09/09/2020,CHALKMEAD,ARGOS LTD,"1,203.91",EDUC VISITS/HOLS/CAMPS/TOYS,DISCOUNT STORES
09/09/2020,COVID19,HYGIENE 4 LESS,"1,198.08",CLEANING AND DOMESTIC SUPPLIES,"SANITATION, POLISHING & SPECIALITY CLEANING PREP"
09/09/2020,COMMUNICATIONS,FACEBK BD77GWE2S2,500.00,ADVERTISING (STATUTORY NOTICES),ADVERTISING SERVICES
09/09/2020,ACL CENTRAL EXPENDITURE,WWW.HSWALSH.COM,390.00,EQUIPMENT,"CLOCK, JEWELRY, WATCH, AND SILVERWARE STORE"
09/09/2020,STRATEGIC LEADERSHIP (CEO & ACEO),WWW.EMAP.COM,322.00,SUBSCRIPTIONS,MISCELLANEOUS PUBLISHING AND PRINTING
09/09/2020,BURBANK COMMUNITY HOME,SAINSBURYS TO YOU 0686,288.49,PURCHASE OF FOOD (RAW MATERIALS),"GROCERY STORES, SUPERMARKETS"
09/09/2020,COVID19 CFLC,AMZNMKTPLACE,265.50,EQUIPMENT,MISCELLANEOUS AND SPECIALTY RETAIL STORES
10/09/2020,SOLD DAY TO DAY OPERATIONS,ONLINE MARKETING SUPPO,"1,890.00",EQUIPMENT,"EQUIP, FURNITURE, HOME FURNSHNGS STRS (EXCPT APPL)"
10/09/2020,YOUTH OFFER SERVICE,SUSTAINABLE-FURNITURE,700.00,FURNITURE,"EQUIP, FURNITURE, HOME FURNSHNGS STRS (EXCPT APPL)"
10/09/2020,DOWNLANDS COUNTRYSIDE PROJECT,LANDROVER CROYDON,669.56,VEHICLE RUNNING COSTS,AUTOMOTIVE SERVICE SHOPS
10/09/2020,SE NIL RECOURSE TO PUBLIC FUNDS CARE,HOTELSCOM9201860677973,668.16,INDEPENDENT LIVING PLACEMENTS,TRAVEL AGENCIES AND TOUR OPERATORS
10/09/2020,NW CARE - CP & COURT LAC,TRAVELODGE GB0000,539.43,INDEPENDENT LIVING PLACEMENTS,TRAVELODGE
10/09/2020,CS BUSINESS SUPPORT EAST,AMZNMKTPLACE,378.78,OTHER COMMUNITY CARE VOL,MISCELLANEOUS AND SPECIALTY RETAIL STORES
10/09/2020,ACT,WWW.NOTA.CO.UK,320.00,SUBSCRIPTIONS,"ORGANIZATIONS, CHARITABLE AND SOCIAL SERVICES"
10/09/2020,CORE ACTIVITY                           ,CAPSULECRM.COM ZESTIA,316.80,COMPUTER SOFTWARE,"COMPUTERS, COMPUTER PERIPHERAL EQUIPMENT, SOFTWARE"
10/09/2020,THE ANNEX@84,IZ  PEACOCKS DELICATES,285.26,PURCHASE OF FOOD (RAW MATERIALS),"MISC FOOD STORE-CONVENIENCE,MRKT,SPLTY,VENDNG MACS"
11/09/2020,SOLD ESTATES MANAGEMENT,MOLE VALLEY MOWERS,945.95,VEHICLE REPAIRS AND MAINTENANCE,LAWN AND GARDEN SUPPLY STORES
11/09/2020,FIRE SERVICES IT,AMZNMKTPLACE,522.20,COMPUTER HARDWARE,MISCELLANEOUS AND SPECIALTY RETAIL STORES
11/09/2020,HIGHWAY DESIGN & DELIVERY,THOMAS TELFORD LIMIT,390.00,TRAINING EXPENSES EXTERNAL GENERAL,SCHOOLS & EDUCATIONAL SVC-NOT ELSEWHERE CLASSIFIED
12/09/2020,DEVELOPMENT TEAM,MSFT   E0100BYE7Y,483.62,SUBSCRIPTIONS,"COMPUTERS, COMPUTER PERIPHERAL EQUIPMENT, SOFTWARE"
13/09/2020,DEVELOPMENT TEAM,MSFT   E0100BZ2T7,352.54,SUBSCRIPTIONS,"COMPUTERS, COMPUTER PERIPHERAL EQUIPMENT, SOFTWARE"
14/09/2020,ASSET PLANNING GROUP,IPF,"1,000.00",SUBSCRIPTIONS,"ACCOUNTING, AUDITING AND BOOKKEEPING SERVICES"
14/09/2020,SE LAC AND LEAVING CARE,ARGOS LTD,935.93,EQUIPMENT,DISCOUNT STORES
14/09/2020,FAIRCROFT COMMUNITY HOME,AO RETAIL LIMITED,933.00,FURNITURE,HOUSEHOLD APPLIANCE STORES
14/09/2020,COVID19,LAWSONS REDHILL,813.92,PURCHASE OF BUILDING MATERIALS,"BUILDING MATERIALS, LUMBER STORES"
14/09/2020,ASSET PLANNING GROUP,IPF,794.00,SUBSCRIPTIONS,"ACCOUNTING, AUDITING AND BOOKKEEPING SERVICES"
14/09/2020,SURREY ARTS GENERAL,WWW.UKPOS.COM,558.36,EQUIPMENT,"OFFICE, SCHOOL SUPPLY, AND STATIONERY STORES"
14/09/2020,COMMUNICATIONS,FACEBK RTDYVV62S2,500.00,ADVERTISING (STATUTORY NOTICES),ADVERTISING SERVICES
14/09/2020,MALLOW CRESCENT DMHS 25-30,WWW.JOHNLEWIS.COM,394.00,EQUIPMENT,DEPARTMENT STORES
14/09/2020,SE LAC AND LEAVING CARE,ARGOS LTD,326.98,EQUIPMENT,DISCOUNT STORES
14/09/2020,KARIBU COMMUNITY HOME,SAINSBURYS TO YOU 0683,314.70,PURCHASE OF FOOD (RAW MATERIALS),"GROCERY STORES, SUPERMARKETS"
14/09/2020,MISC EDCAT SUPPORT,BITEABLE LLC,280.66,TRAINING USING EXTERNAL PROVIDERS,MOTION PICTURE/VIDEO TAPE PRODUCTION/DISTRIBUTION
15/09/2020,SE SECTION 17 CARE,AIRBNB   HM9DHCE9ZN,"1,889.32",INDEPENDENT LIVING PLACEMENTS,"LODGING-HOTELS,MOTELS,RESORTS-NOT CLASSIFIED"
15/09/2020,MID AREA FINANCE TEAM,WWW.MYNEXTMATTRESS.CO.,579.00,EQUIPMENT,FLOOR COVERING STORES
15/09/2020,SW REGIONAL STAFF,AMZNMKTPLACE AMAZON.CO,491.22,EQUIPMENT,MISCELLANEOUS AND SPECIALTY RETAIL STORES
15/09/2020,SURREY ARTS GENERAL,SP   CLEVELANDSTUDIOS,406.99,EQUIPMENT,COMPUTER SOFTWARE STORES
15/09/2020,MISC EDCAT SUPPORT,AMZNMKTPLACE AMAZON.CO,359.80,EQUIPMENT,MISCELLANEOUS AND SPECIALTY RETAIL STORES
15/09/2020,TRAINING AND DEVELOPMENT,SP   THE FIRE FIGHTERS,310.95,TRAINING EXPENSES EXTERNAL GENERAL,COMPUTER SOFTWARE STORES
16/09/2020,RUTH HOUSE,ARGOS LTD,679.95,EQUIPMENT,DISCOUNT STORES
16/09/2020,RUTH HOUSE,MUSBURY FABRICS,500.00,"CLOTHING, UNIFORM AND LAUNDRY",MISCELLANEOUS HOUSE FURNISHING SPECIALTY SHOPS
16/09/2020,RUTH HOUSE,MUSBURY FABRICS,500.00,"CLOTHING, UNIFORM AND LAUNDRY",MISCELLANEOUS HOUSE FURNISHING SPECIALTY SHOPS
16/09/2020,BURBANK COMMUNITY HOME,SAINSBURYS TO YOU 0686,319.98,PURCHASE OF FOOD (RAW MATERIALS),"GROCERY STORES, SUPERMARKETS"
16/09/2020,ACL CENTRAL EXPENDITURE,AMAZON.CO.UK NU7E82C85,271.96,COMPUTER CONSUMABLES,DIRECT MARKETING-OTHER DIRECT MARKETERS/NOT ELSEW.
16/09/2020,TRAINING AND DEVELOPMENT,WESTMINSTER INSIGHT,270.00,SUBSISTENCE AND CONFERENCE EXPENSES,SCHOOLS & EDUCATIONAL SVC-NOT ELSEWHERE CLASSIFIED
17/09/2020,NE FAMILY SAFEGUARDING,C2E756600476T UKVI,"3,199.00",FEES,GOVERNMENT SERVICES-NOT ELSEWHERE CLASSIFIED
17/09/2020,NE FAMILY SAFEGUARDING,C2E756600482F UKVI,"3,199.00",FEES,GOVERNMENT SERVICES-NOT ELSEWHERE CLASSIFIED
17/09/2020,NE FAMILY SAFEGUARDING,C2E756600492Q UKVI,"3,199.00",FEES,GOVERNMENT SERVICES-NOT ELSEWHERE CLASSIFIED
17/09/2020,NE FAMILY SAFEGUARDING,C2E756600498T UKVI,"3,199.00",FEES,GOVERNMENT SERVICES-NOT ELSEWHERE CLASSIFIED
17/09/2020,NW FAMILY SAFEGUARDING,C2E756600508Z UKVI,"3,199.00",FEES,GOVERNMENT SERVICES-NOT ELSEWHERE CLASSIFIED
17/09/2020,"SE REF, ASS & INT SERVICE - HUB 1",C2E756600514I UKVI,"3,199.00",FEES,GOVERNMENT SERVICES-NOT ELSEWHERE CLASSIFIED
17/09/2020,TRANSPORT,WWW.FTA.CO.UK,"1,434.00",SUBSCRIPTIONS,RAILROADS - FREIGHT
17/09/2020,LAC REVWS & CP CONIF,SIT-STAND TRADING,863.94,OTHER COMMUNITY CARE VOL,"EQUIP, FURNITURE, HOME FURNSHNGS STRS (EXCPT APPL)"
17/09/2020,TRANSPORT,CIRRUS RESEARCH PLC,831.60,VEHICLE REPAIRS AND MAINTENANCE,INDUSTRIAL SUPPLIES NOT ELSEWHERE CLASSIFIED
17/09/2020,LAC REVWS & CP CONIF,WWW.OFFICEFURNITURESCE,564.67,OTHER COMMUNITY CARE VOL,OFFICE AND COMMERCIAL FURNITURE
17/09/2020,TRAINING AND DEVELOPMENT,THE ROYAL MARITIME CLU,450.00,TRAINING EXPENSES EXTERNAL GENERAL,"LODGING-HOTELS,MOTELS,RESORTS-NOT CLASSIFIED"
17/09/2020,HR - ASC TRAINING OPEN PROGRAMME,NRS HEALTHCARE,287.96,EQUIPMENT,"HEARING AIDS-SALES, SERVICE, SUPPLY STORES"
17/09/2020,RUTH HOUSE,ARGOS LTD,279.98,EQUIPMENT,DISCOUNT STORES
17/09/2020,SERVICE DELIVERY RESOURCES,SAI GLOBAL ILILIMITED,261.84,OPERATIONAL FIRE EQUIPMENT,BUSINESS SERVICES-NOT ELSEWHERE CLASSIFIED
17/09/2020,PLANNING DEVELOPMENT CONTROL TEAM,AMZNMKTPLACE AMAZON.CO,255.68,COMPUTER HARDWARE,MISCELLANEOUS AND SPECIALTY RETAIL STORES
17/09/2020,ABBEYWOOD,THE RANGE,252.59,FURNITURE,DEPARTMENT STORES
18/09/2020,ACL CENTRAL EXPENDITURE,ZOOM.US 888-799-9666,"1,966.02",COMPUTER SOFTWARE,TELECOM INCL PREPAID/RECURRING PHONE SVCS
18/09/2020,SPLASH PROJECT,ACORN PRINTING SER,845.33,CURRICULUM EQUIPMENT AND FURNITURE,"QUICK COPY,REPRODUCTION AND BLUEPRINTING SERVICES"
18/09/2020,,TRAVELODGE GB0000,496.59,INDEPENDENT LIVING PLACEMENTS,TRAVELODGE
18/09/2020,TRAINING,SANITAS HUB LTD,360.00,TRAINING EXPENSES EXTERNAL GENERAL,"SCHOOLS, ELEMENTARY AND SECONDARY"
18/09/2020,TRANSPORT,THHS LTD,338.35,VEHICLE REPAIRS AND MAINTENANCE,INDUSTRIAL SUPPLIES NOT ELSEWHERE CLASSIFIED
20/09/2020,THE ANNEX@84,OCADO,472.14,PURCHASE OF FOOD (RAW MATERIALS),"GROCERY STORES, SUPERMARKETS"
21/09/2020,SE TARGETTED YOUTH SUPPORT,WWW.JLLFITNESS.CO.UK,499.99,EQUIPMENT,SPORTING GOODS STORES
21/09/2020,COVID19 CFLC,STEROPLAST LTD,445.65,EQUIPMENT,DENTAL/LAB/MED/OPHTHALMIC HOSP EQUIP & SUPPLIES
21/09/2020,TRANSPORT,TSI FLOWMETERS LTD,370.00,VEHICLE REPAIRS AND MAINTENANCE,MISCELLANEOUS GENERAL MERCHANDISE
21/09/2020,KARIBU COMMUNITY HOME,SAINSBURYS TO YOU 0683,320.52,PURCHASE OF FOOD (RAW MATERIALS),"GROCERY STORES, SUPERMARKETS"
21/09/2020,COVID19 PPE,AMZNMKTPLACE AMAZON.CO,297.01,EQUIPMENT,MISCELLANEOUS AND SPECIALTY RETAIL STORES
21/09/2020,TRANSPORT,INDUSTRIAL GAS SPRINGS,262.55,VEHICLE REPAIRS AND MAINTENANCE,"COMMERCIAL EQUIPMENT, NOT ELSEWHERE CLASSIFIED"
22/09/2020,NE CARE - LAC,AIRBNB   HMYA2YQAWY,"1,872.60",INDEPENDENT LIVING PLACEMENTS,"LODGING-HOTELS,MOTELS,RESORTS-NOT CLASSIFIED"
22/09/2020,SE SECTION 17 CARE,TURKISH A 002352418595492,"1,050.00",NON-STAFF RELATED TRANSPORT COSTS,TURKISH AIRLINES
22/09/2020,COVID19,SP   CLEANING SUPPLIES,990.90,CLEANING AND DOMESTIC SUPPLIES,COMPUTER SOFTWARE STORES
22/09/2020,DEVELOPMENT TEAM,CDATA SOFTWARE ARCESB,954.44,SUBSCRIPTIONS,"COMPUTERS, COMPUTER PERIPHERAL EQUIPMENT, SOFTWARE"
22/09/2020,COVID19,WWW.APTCLEANINGSUPPLIE,625.54,CLEANING AND DOMESTIC SUPPLIES,CHEMICALS/ALLIED PRODUCTS NOT ELSEWHERE CLASSIFIED
22/09/2020,COVID19,WWW.APTCLEANINGSUPPLIE,625.54,CLEANING AND DOMESTIC SUPPLIES,CHEMICALS/ALLIED PRODUCTS NOT ELSEWHERE CLASSIFIED
22/09/2020,,WWW.FURNITUREATWORK.CO,519.60,FURNITURE,"EQUIP, FURNITURE, HOME FURNSHNGS STRS (EXCPT APPL)"
22/09/2020,MEMBERS EXPENSES (INCL ALLOWANCES),ZOOM.US 888-799-9666,479.60,SUBSCRIPTIONS,TELECOM INCL PREPAID/RECURRING PHONE SVCS
22/09/2020,BARNFIELD,CURRYS,250.00,CLEANING AND DOMESTIC SUPPLIES,ELECTRONIC SALES
22/09/2020,BARNFIELD,CURRYS,250.00,CLEANING AND DOMESTIC SUPPLIES,ELECTRONIC SALES
23/09/2020,TRAINING AND DEVELOPMENT,FUTURE INNS CARDIFF,"4,704.00",TRAINING EXPENSES EXTERNAL GENERAL,"LODGING-HOTELS,MOTELS,RESORTS-NOT CLASSIFIED"
23/09/2020,TRAINING AND DEVELOPMENT,HOTEL MERCURE,"1,605.00",TRAINING EXPENSES EXTERNAL GENERAL,HOTEL MERCURE
23/09/2020,DOWNLANDS COUNTRYSIDE PROJECT,CAPITAL CAR RENTAL,"1,350.00",HIRE OF VEHICLES,AUTOMOBILE RENTAL AGENCY-NOT ELSEWHERE CLASSIFIED
23/09/2020,NE CARE - LAC,2NAA021597168 TD E-PMT,"1,349.20",OTHER COMMUNITY CARE VOL,GOVERNMENT SERVICES-NOT ELSEWHERE CLASSIFIED
23/09/2020,ACL CENTRAL EXPENDITURE,COOKSON PRECIOUS M,651.17,EQUIPMENT,"PRECIOUS STONES AND METALS, WATCHES AND JEWELRY"
23/09/2020,COVID19,THE ALTERNATIVE PALLET,620.34,EQUIPMENT,INDUSTRIAL SUPPLIES NOT ELSEWHERE CLASSIFIED
23/09/2020,MALLOW CRESCENT,DREAMS,499.00,FURNITURE,"EQUIP, FURNITURE, HOME FURNSHNGS STRS (EXCPT APPL)"
23/09/2020,BURBANK COMMUNITY HOME,CENTRAL AUTO REPAIR SE,408.68,VEHICLE REPAIRS AND MAINTENANCE,AUTOMOTIVE SERVICE SHOPS
23/09/2020,RUTH HOUSE,ARGOS LTD,380.99,EQUIPMENT,DISCOUNT STORES
23/09/2020,BURBANK COMMUNITY HOME,SAINSBURYS TO YOU 0686,326.46,PURCHASE OF FOOD (RAW MATERIALS),"GROCERY STORES, SUPERMARKETS"
24/09/2020,TRANSPORT,WWW.ANSONUK.CO.UK,"1,369.20",OPERATIONAL FIRE EQUIPMENT,PROFESSIONAL SERVICES-NOT ELSEWHERE CLASSIFIED
24/09/2020,COVID19 PPE,AMZNMKTPLACE AMAZON.CO,632.64,CLEANING AND DOMESTIC SUPPLIES,MISCELLANEOUS AND SPECIALTY RETAIL STORES
24/09/2020,NE CARE - CP & COURT LAC,HAPPY BEDS,552.97,OTHER COMMUNITY CARE VOL,"EQUIP, FURNITURE, HOME FURNSHNGS STRS (EXCPT APPL)"
24/09/2020,TRANSPORT,WWW.ANSONUK.CO.UK,391.20,OPERATIONAL FIRE EQUIPMENT,PROFESSIONAL SERVICES-NOT ELSEWHERE CLASSIFIED
24/09/2020,CP CONFERENCES,SIT STAND TRADING LTD,359.95,OTHER COMMUNITY CARE VOL,OFFICE PHOTOGRAPHIC PHOTOCOPY & MICROFILM EQUIPMT.
24/09/2020,ORCHARD COURT,RS COMPONENTS,274.34,EQUIPMENT,ELECTRICAL PARTS AND EQUIPMENT
25/09/2020,COVID19 PH,QSR INTERNATIONAL,422.40,TRAINING EXPENSES EXTERNAL GENERAL,COMPUTER NETWORK/INFORMATION SERVICES
27/09/2020,COVID19,AMZNMKTPLACE,718.50,EQUIPMENT,MISCELLANEOUS AND SPECIALTY RETAIL STORES
27/09/2020,COVID19,AMZNMKTPLACE AMAZON.CO,483.49,EQUIPMENT,MISCELLANEOUS AND SPECIALTY RETAIL STORES
28/09/2020,TRANSPORT,SP SERVICES,631.96,OPERATIONAL FIRE EQUIPMENT,DENTAL/LAB/MED/OPHTHALMIC HOSP EQUIP & SUPPLIES
28/09/2020,SECTOR MANAGER,FAYE (UK) LTD,504.00,ITEMS PURCHASED FOR RE-SALE,MEN'S AND WOMEN'S CLOTHING STORES
28/09/2020,GENERAL MAINT PRINCIPAL ROADS,ENVIROMENT AGENCY,501.25,FEES,GOVERNMENT SERVICES-NOT ELSEWHERE CLASSIFIED
28/09/2020,SURREY HILLS AONB,WWW.PLANNINGPORTAL.CO.,487.00,FEES,BUSINESS SERVICES-NOT ELSEWHERE CLASSIFIED
28/09/2020,TRANSPORT,BRAUNABILITY UK LTD,457.68,VEHICLE REPAIRS AND MAINTENANCE,SPORTING GOODS STORES
28/09/2020,TRAINING AND DEVELOPMENT,THE ROYAL MARITIME CLU,450.00,TRAINING EXPENSES EXTERNAL GENERAL,"LODGING-HOTELS,MOTELS,RESORTS-NOT CLASSIFIED"
28/09/2020,SPLASH PROJECT,TWINKL LIMITED,341.64,EDUC VISITS/HOLS/CAMPS/TOYS,SCHOOLS & EDUCATIONAL SVC-NOT ELSEWHERE CLASSIFIED
28/09/2020,PE/CDT MAINTENANCE OVERHEADS,WWW.CHAMPIONTIMBER,322.73,ITEMS PURCHASED FOR RE-SALE,"BUILDING MATERIALS, LUMBER STORES"
28/09/2020,YOUTH OFFER SERVICE,SCREWFIX DIRECT,309.39,EQUIPMENT,"BUILDING MATERIALS, LUMBER STORES"
28/09/2020,KARIBU COMMUNITY HOME,SAINSBURYS TO YOU 0683,272.06,PURCHASE OF FOOD (RAW MATERIALS),"GROCERY STORES, SUPERMARKETS"
29/09/2020,COVID19 CFLC,HYGIENE 4 LESS,"1,349.00",EQUIPMENT,"SANITATION, POLISHING & SPECIALITY CLEANING PREP"
29/09/2020,SE NIL RECOURSE TO PUBLIC FUNDS CARE,GATWICK INN HOTEL,668.00,INDEPENDENT LIVING PLACEMENTS,"LODGING-HOTELS,MOTELS,RESORTS-NOT CLASSIFIED"
29/09/2020,ARUNDEL,AMZNMKTPLACE,549.94,EDUC VISITS/HOLS/CAMPS/TOYS,MISCELLANEOUS AND SPECIALTY RETAIL STORES
29/09/2020,2 ST JAMES AVENUE FARNHAM,WWW.SCS.CO.UK,438.99,EQUIPMENT,"EQUIP, FURNITURE, HOME FURNSHNGS STRS (EXCPT APPL)"
29/09/2020,SE NIL RECOURSE TO PUBLIC FUNDS CARE,HOTEL ON BOOKING.COM,336.00,INDEPENDENT LIVING PLACEMENTS,"LODGING-HOTELS,MOTELS,RESORTS-NOT CLASSIFIED"
29/09/2020,ABBEYWOOD,AMAZON.CO.UK TR1C23MD5,329.99,FURNITURE,DIRECT MARKETING-OTHER DIRECT MARKETERS/NOT ELSEW.
29/09/2020,COVID19,AMZNMKTPLACE,310.98,EQUIPMENT,MISCELLANEOUS AND SPECIALTY RETAIL STORES
29/09/2020,LEGAL EXPENSES CHILD ADULT EDUC TEAM,COUNTY COURT,308.00,LEGAL EXPENSES,FINES
29/09/2020,CS BUSINESS SUPPORT WEST,AMZNMKTPLACE,292.05,OTHER COMMUNITY CARE VOL,MISCELLANEOUS AND SPECIALTY RETAIL STORES
29/09/2020,COVID19,AMZNMKTPLACE,282.98,EQUIPMENT,MISCELLANEOUS AND SPECIALTY RETAIL STORES
29/09/2020,COVID19,AMAZON.CO.UK QM70S7QR5,255.00,EQUIPMENT,DIRECT MARKETING-OTHER DIRECT MARKETERS/NOT ELSEW.
30/09/2020,TRANSPORT,CALLANCOTE LTD,"1,159.20",OPERATIONAL FIRE EQUIPMENT,INDUSTRIAL SUPPLIES NOT ELSEWHERE CLASSIFIED
30/09/2020,NW NIL RECOURSE TO PUBLIC FUNDS CARE,HOUSE OF FISHER LTD,656.50,INDEPENDENT LIVING PLACEMENTS,"LODGING-HOTELS,MOTELS,RESORTS-NOT CLASSIFIED"
30/09/2020,HR - CENTRALISED TRAINING BUDGET(CONTGY),LAND SKILLS,649.74,TRAINING EXPENSES EXTERNAL GENERAL,SCHOOLS & EDUCATIONAL SVC-NOT ELSEWHERE CLASSIFIED
30/09/2020,NE LAC AND LEAVING CARE,ARGOS LTD,639.97,EQUIPMENT,DISCOUNT STORES
30/09/2020,BURBANK COMMUNITY HOME,SAINSBURYS TO YOU 0686,271.58,PURCHASE OF FOOD (RAW MATERIALS),"GROCERY STORES, SUPERMARKETS"
30/09/2020,EGHAM FIRE STATION,WWW.NISBETS.COM,264.10,EQUIPMENT,DIRECT MARKETING-CATALOG MERCHANTS
30/09/2020,,PAYPAL  JNATHAN,250.00,TRAINING EXPENSES EXTERNAL GENERAL,PROFESSIONAL SERVICES-NOT ELSEWHERE CLASSIFIED
01/10/2020,COMMUNICATIONS,GOOGLE  ADS2060179426,500.00,ADVERTISING (STATUTORY NOTICES),ADVERTISING SERVICES
01/10/2020,TRANSPORT,PAYPAL  PCW PAYPAL,469.00,EQUIPMENT,ELECTRONIC SALES
01/10/2020,RECRUITMENT,INDEED,433.63,STAFF ADVERTISING ,BUSINESS SERVICES-NOT ELSEWHERE CLASSIFIED
01/10/2020,SOLD DAY TO DAY OPERATIONS,AMZNMKTPLACE,363.95,EQUIPMENT,MISCELLANEOUS AND SPECIALTY RETAIL STORES
01/10/2020,LANGDOWN STAFF COST,AMZNMKTPLACE,327.60,3RD PARTY PAYMENTS PRIVATE INDIV,MISCELLANEOUS AND SPECIALTY RETAIL STORES
01/10/2020,ABBEYWOOD,AMZNMKTPLACE,279.98,FURNITURE,MISCELLANEOUS AND SPECIALTY RETAIL STORES
02/10/2020,SE LAC AND LEAVING CARE,STONEBRIDGE ASSC COOL,"1,193.85",CHILDREN ACT SEC 17 PAYMENTS,"COLLEGES, UNIV, PRO SCHOOLS, JUNIOR COLLEGES"
02/10/2020,NW CARE - NON-LAC CP & COURT,TRAVELODGE GB0000,516.99,INDEPENDENT LIVING PLACEMENTS,TRAVELODGE
02/10/2020,RUTH HOUSE,WILKO.COM,313.80,EQUIPMENT,MISCELLANEOUS GENERAL MERCHANDISE
02/10/2020,TRANSPORT STUDIES TEAM,AMZNMKTPLACE AMAZON.CO,280.00,EQUIPMENT,MISCELLANEOUS AND SPECIALTY RETAIL STORES
03/10/2020,COMMUNICATIONS TEAM,THE FINANCIAL TIMES,306.80,SUBSCRIPTIONS,DIRECT MARKETING-CONTINUITY/SUBSCRIPTION MERCHANTS
03/10/2020,THE ANNEX@84,OCADO,280.39,CLEANING AND DOMESTIC SUPPLIES,"GROCERY STORES, SUPERMARKETS"
03/10/2020,COVID19,AMZNMKTPLACE,266.88,EQUIPMENT,MISCELLANEOUS AND SPECIALTY RETAIL STORES
04/10/2020,ASC COMMUNICATION & ENGAGEMENT TEAM,HOO HOOTSUITE INC,360.00,COMPUTER SOFTWARE,BUSINESS SERVICES-NOT ELSEWHERE CLASSIFIED
04/10/2020,TRAINING AND DEVELOPMENT,WHITE RABBIT,336.96,TRAINING EXPENSES EXTERNAL GENERAL,"EATING PLACES, RESTAURANTS"
05/10/2020,NE CARE - CP & COURT LAC,FERNDALE PROPERTY LTD,"1,485.00",INDEPENDENT LIVING PLACEMENTS,TRAVEL AGENCIES AND TOUR OPERATORS
05/10/2020,OCCUPATIONAL HEALTH,UK SUPREME FITNESS,891.60,EQUIPMENT,SPORTING GOODS STORES
05/10/2020,PE/CDT MAINTENANCE OVERHEADS,MAINCO WIRE ROPES LTD,624.00,EQUIPMENT,HARDWARE EQUIPMENT AND SUPPLIES
05/10/2020,PE/CDT MAINTENANCE OVERHEADS,UNIVERSAL SERVICES (SP,588.72,ITEMS PURCHASED FOR RE-SALE,"ATHLTIC FIELDS,COMMRCL SPRT,SPRT CLBS,SPRT PROMOTR"
05/10/2020,INSTRUMENT HIRE SHOP,WWW.ALDAUTOMOTIVE.CO.U,297.97,HIRE OF VEHICLES,BUSINESS SERVICES-NOT ELSEWHERE CLASSIFIED
06/10/2020,SURREY FRS CAPITAL EQUIPMENT,CURRYS ONLINE,923.00,CE02 FURNITURE AND EQUIPMENT,ELECTRONIC SALES
06/10/2020,RIGHTS & PARTICIPATION TEAM,HOODYWORLD LTD,440.00,EDUC VISITS/HOLS/CAMPS/TOYS,MEN'S AND WOMEN'S CLOTHING STORES
06/10/2020,PORTAGE SERVICE (SE),SPLIT - SUPPLIES REQUIRED FOR SEES (78.71%),427.33,EQUIPMENT,MISCELLANEOUS AND SPECIALTY RETAIL STORES
06/10/2020,MOVES,ENTERPRISE RENT A CAR,351.98,EQUIPMENT,ENTERPRISE RENT-A-CAR
06/10/2020,CORE ACTIVITY                           ,CAPSULECRM.COM ZESTIA,331.20,COMPUTER HARDWARE,DIRECT MARKETING-CONTINUITY/SUBSCRIPTION MERCHANTS
06/10/2020,TRAINING AND DEVELOPMENT,DVSA,300.00,TRAINING EXPENSES EXTERNAL GENERAL,GOVERNMENT SERVICES-NOT ELSEWHERE CLASSIFIED
06/10/2020,COMMUNICATIONS TEAM,WWW.CIPR.CO.UK,290.00,SUBSCRIPTIONS,"ORGANIZATIONS, MEMBERSHIP-NOT ELSEWHERE CLASSIFIED"
06/10/2020,FIRE SERVICES IT,AMAZON.CO.UK 2P65F0EO5,287.52,COMPUTER HARDWARE,DIRECT MARKETING-OTHER DIRECT MARKETERS/NOT ELSEW.
07/10/2020,COVID19,CLUSKEYS CCP LTD,558.00,EQUIPMENT,MISCELLANEOUS GENERAL MERCHANDISE
07/10/2020,2 ST JAMES AVENUE FARNHAM,DUNELM,491.95,FURNITURE,"EQUIP, FURNITURE, HOME FURNSHNGS STRS (EXCPT APPL)"
07/10/2020,SECTOR MANAGER,FAYE (UK) LTD,279.60,ITEMS PURCHASED FOR RE-SALE,MEN'S AND WOMEN'S CLOTHING STORES
08/10/2020,SOLD ESTATES MANAGEMENT,CROWBOROUGH COACHW,737.94,VEHICLE REPAIRS AND MAINTENANCE,AUTOMOTIVE SERVICE SHOPS
08/10/2020,FIRE & RESCUE COMMUNITY SAFETY,UK ASSOCIATION OF FIRE,354.00,SUBSCRIPTIONS,OTHER SERVICES (NOT ELSEWHERE CLASSIFIED)
08/10/2020,RECRUITMENT,GOOGLE  ADS5533019982,294.42,STAFF ADVERTISING ,DIGITAL GOODS MULTI CATEGORY
08/10/2020,CH WRKFRCE ACADEMY,HAYMARKET MEDIA GROUP,288.90,TRAINING EXPENSES EXTERNAL GENERAL,"CONSULTING, MANAGEMENT, AND PUBLIC RELATIONS SVCS"
08/10/2020,CH WRKFRCE ACADEMY,HAYMARKET MEDIA GROUP,288.90,TRAINING EXPENSES EXTERNAL GENERAL,"CONSULTING, MANAGEMENT, AND PUBLIC RELATIONS SVCS"
09/10/2020,NW CARE - CP & COURT LAC,AIRBNB   HMZ9RAEB5Z,746.08,INDEPENDENT LIVING PLACEMENTS,"LODGING-HOTELS,MOTELS,RESORTS-NOT CLASSIFIED"
09/10/2020,COVID19 TPP,PORTSDOWN OFFICE LTD,614.40,EQUIPMENT,OFFICE AND COMMERCIAL FURNITURE
09/10/2020,ACL CENTRAL EXPENDITURE,WWW.HEARTINTERNET.COM,515.99,SUBSCRIPTIONS,COMPUTER NETWORK/INFORMATION SERVICES
09/10/2020,ROW AREA3 MV EPS ELM                    ,ROUDEN PIPETEK LTD,456.30,EQUIPMENT,"BUILDING MATERIALS, LUMBER STORES"
09/10/2020,NW CARE - NON-LAC CP & COURT,TRAVELODGE GB0000,444.57,INDEPENDENT LIVING PLACEMENTS,TRAVELODGE
09/10/2020,TRANSPORT,CORDWALLIS COMM,386.40,VEHICLE REPAIRS AND MAINTENANCE,AUTOMOBILE AND TRUCK DEALERS-(USED ONLY)-SALES
09/10/2020,SERVICE DELIVERY RESOURCES,BOOKER LIMITED REDHILL,368.06,DESCRIPTION &AWARD LONG SERVICE,CATERERS
09/10/2020,COVID19,AMAZON.CO.UK 7Q0AQ9QC5,306.00,EQUIPMENT,DIRECT MARKETING-OTHER DIRECT MARKETERS/NOT ELSEW.
09/10/2020,WOODHATCH,AO RETAIL LIMITED,280.00,EQUIPMENT,HOUSEHOLD APPLIANCE STORES
11/10/2020,PORTAGE SERVICE (SW),AMAZON.CO.UK G65RM9F45,310.26,BOOKS,DIRECT MARKETING-OTHER DIRECT MARKETERS/NOT ELSEW.
12/10/2020,TRANSPORT,FLEETLINE COACHWOR,"1,890.36",VEHICLE REPAIRS AND MAINTENANCE,AUTOMOTIVE SERVICE SHOPS
12/10/2020,RIGHTS & PARTICIPATION TEAM,NOTJUSTBALLOONS,903.99,EDUC VISITS/HOLS/CAMPS/TOYS,"GIFT, CARD, NOVELTY AND SOUVENIR SHOPS"
12/10/2020,RECRUITMENT,INDEED,601.44,STAFF ADVERTISING ,BUSINESS SERVICES-NOT ELSEWHERE CLASSIFIED
12/10/2020,SE LAC AND LEAVING CARE,ARGOS LTD,556.13,EQUIPMENT,DISCOUNT STORES
12/10/2020,EARLY HELP HUBS,GOVERNMENT EVENTS,373.44,OTHER COMMUNITY CARE VOL,"ASSOCIATIONS-CIVIC, SOCIAL, AND FRATERNAL"
12/10/2020,KARIBU COMMUNITY HOME,SAINSBURYS TO YOU 0683,349.74,PURCHASE OF FOOD (RAW MATERIALS),"GROCERY STORES, SUPERMARKETS"
12/10/2020,TRANSPORT,LIGHTHOUSE (UK) LTD,330.00,VEHICLE REPAIRS AND MAINTENANCE,MISCELLANEOUS PUBLISHING AND PRINTING
13/10/2020,TRANSPORT,WWW.KIOWA.CO.UK,501.84,OPERATIONAL FIRE EQUIPMENT,HARDWARE EQUIPMENT AND SUPPLIES
13/10/2020,TRANSPORT,PREMIER VANGUARD L,408.24,OPERATIONAL FIRE EQUIPMENT,"OFFICE, SCHOOL SUPPLY, AND STATIONERY STORES"
13/10/2020,DEVELOPMENT TEAM,MSFT   E0100C8LW1,355.73,SUBSCRIPTIONS,"COMPUTERS, COMPUTER PERIPHERAL EQUIPMENT, SOFTWARE"
13/10/2020,NE CARE - CP & COURT LAC,ARGOS LTD,316.00,OTHER COMMUNITY CARE VOL,DISCOUNT STORES
14/10/2020,SERVICE DELIVERY RESOURCES,WWW.DIGIISTORE.COM 141,625.00,DESCRIPTION &AWARD LONG SERVICE,MISCELLANEOUS AND SPECIALTY RETAIL STORES
14/10/2020,TRANSPORT,HOWDEN JOINERY LTD,572.47,FURNITURE,"BUILDING MATERIALS, LUMBER STORES"
14/10/2020,COMMUNICATIONS,GOOGLE  ADS2060179426,500.00,ADVERTISING (STATUTORY NOTICES),ADVERTISING SERVICES
14/10/2020,DEVELOPMENT TEAM,MSFT   E0100C9BYF,479.36,SUBSCRIPTIONS,"COMPUTERS, COMPUTER PERIPHERAL EQUIPMENT, SOFTWARE"
14/10/2020,TRANSPORT,PAYPAL  EBAY UK,399.00,EQUIPMENT,DEPARTMENT STORES
14/10/2020,ACL CENTRAL EXPENDITURE,GOOGLE  ADS2777015041,350.00,PUBLICITY,DIRECT MARKETING-CONTINUITY/SUBSCRIPTION MERCHANTS
14/10/2020,ACL CENTRAL EXPENDITURE,HOO HOOTSUITE INC,331.70,PUBLICITY,BUSINESS SERVICES-NOT ELSEWHERE CLASSIFIED
14/10/2020,IT TRAINING,PLURALSIGHT,303.65,SUBSCRIPTIONS,SCHOOLS & EDUCATIONAL SVC-NOT ELSEWHERE CLASSIFIED
14/10/2020,BURBANK COMMUNITY HOME,SAINSBURYS TO YOU 0686,292.46,PURCHASE OF FOOD (RAW MATERIALS),"GROCERY STORES, SUPERMARKETS"
14/10/2020,LOWER MOLE COUNTRYSIDE PROJECT,DVLA VEHICLE TAX,272.50,VEHICLE RUNNING COSTS,TAX PAYMENTS
15/10/2020,NE FAMILY SAFEGUARDING,C2E759400265D UKVI,"3,199.00",FEES,GOVERNMENT SERVICES-NOT ELSEWHERE CLASSIFIED
15/10/2020,NE FAMILY SAFEGUARDING,C2E759400290Z UKVI,"3,199.00",FEES,GOVERNMENT SERVICES-NOT ELSEWHERE CLASSIFIED
15/10/2020,NE FAMILY SAFEGUARDING,C2E759400329R UKVI,"3,199.00",FEES,GOVERNMENT SERVICES-NOT ELSEWHERE CLASSIFIED
15/10/2020,NE FAMILY SAFEGUARDING,C2E759400359E UKVI,"3,199.00",FEES,GOVERNMENT SERVICES-NOT ELSEWHERE CLASSIFIED
15/10/2020,NE FAMILY SAFEGUARDING,C2E759400380V UKVI,"3,199.00",FEES,GOVERNMENT SERVICES-NOT ELSEWHERE CLASSIFIED
15/10/2020,"NE REF, ASS & INT SERVICE - HUB 1",C2E759400404O UKVI,"3,199.00",FEES,GOVERNMENT SERVICES-NOT ELSEWHERE CLASSIFIED
15/10/2020,PARENTING EDUCATION & SUPPORT,C2E759400429E UKVI,"3,199.00",FEES,GOVERNMENT SERVICES-NOT ELSEWHERE CLASSIFIED
15/10/2020,BUSINESS UNIT,MICROSOFT STORE,660.00,TRAINING EXPENSES EXTERNAL GENERAL,DIGITAL GOODS GAMES
15/10/2020,ASSET PLANNING - OPERATIONS,PROTOOLSDIRECT,513.81,EQUIPMENT,HARDWARE STORES
15/10/2020,YOUTH OFFER SERVICE,TRAVIS PERKINS,337.37,PURCHASE OF BUILDING MATERIALS,"BUILDING MATERIALS, LUMBER STORES"
16/10/2020,THE ANNEX@84,1ST CHOICE LEISURE BUI,"5,000.00",FIXTURES AND FITTINGS,AGRICULTURAL COOPERATIVES
16/10/2020,COVID19 CFLC,RENTEX HYGIENE TRANSAC,"3,524.39",CLEANING AND DOMESTIC SUPPLIES,"INSULATION,MASONRY,PLSTER,STONEWRK,TILESET CNTRCTR"
16/10/2020,COVID19 CFLC,MAGENTA UK,"2,977.68",CLEANING AND DOMESTIC SUPPLIES,MISCELLANEOUS AND SPECIALTY RETAIL STORES
16/10/2020,FIRE SERVICES IT,AMZNMKTPLACE,"1,597.66",COMPUTER HARDWARE,MISCELLANEOUS AND SPECIALTY RETAIL STORES
16/10/2020,BUSINESS UNIT,MICROSOFT STORE,660.00,TRAINING EXPENSES EXTERNAL GENERAL,DIGITAL GOODS GAMES
16/10/2020,SURREY ARTS GENERAL,AMAZON.CO.UK 8P0QE6G35,658.00,EQUIPMENT,DIRECT MARKETING-OTHER DIRECT MARKETERS/NOT ELSEW.
16/10/2020,FOSTERING SERVICE CENTRAL COSTS,FOSTERING TEAM BOOKS 16/10/20 APPROVED FIONA MCGOWAN (96.31%),630.00,BOOKS,SCHOOLS & EDUCATIONAL SVC-NOT ELSEWHERE CLASSIFIED
16/10/2020,ACL CENTRAL EXPENDITURE,PM SKIP HIRE LIMITED,420.00,TRADE REFUSE,"UTLTS-ELCTRC, GAS, HEATING OIL, SANITARY, WATER"
17/10/2020,SURREY ARTS GENERAL,AMAZON.CO.UK QT2NC3IF5,987.00,EQUIPMENT,DIRECT MARKETING-OTHER DIRECT MARKETERS/NOT ELSEW.
17/10/2020,RECRUITMENT,INDEED,600.92,STAFF ADVERTISING ,BUSINESS SERVICES-NOT ELSEWHERE CLASSIFIED
18/10/2020,NE CARE - LAC,AIRBNB   HMYA2YQAWY,"1,872.60",INDEPENDENT LIVING PLACEMENTS,"LODGING-HOTELS,MOTELS,RESORTS-NOT CLASSIFIED"
19/10/2020,PE/CDT MAINTENANCE OVERHEADS,FENLAND LEISURE PRODUC,673.00,ITEMS PURCHASED FOR RE-SALE,CHILDREN'S AND INFANT'S WEAR STORES
19/10/2020,IT TRAINING,INCISIVE BUSINESS MEDI,643.68,TRAINING EXPENSES EXTERNAL GENERAL,MISCELLANEOUS PUBLISHING AND PRINTING
19/10/2020,SE LAC AND LEAVING CARE,WF  WAYFAIR 2737024288,506.00,EQUIPMENT,"EQUIP, FURNITURE, HOME FURNSHNGS STRS (EXCPT APPL)"
19/10/2020,KARIBU COMMUNITY HOME,SAINSBURYS TO YOU 0683,481.90,PURCHASE OF FOOD (RAW MATERIALS),"GROCERY STORES, SUPERMARKETS"
19/10/2020,RUTH HOUSE,C BREWER & SONS,434.54,EQUIPMENT,"BUILDING MATERIALS, LUMBER STORES"
19/10/2020,ACCESS 2 EDUCATION SE NON-MEDICAL,WWW.REED.CO.UK,392.00,TRAINING EXPENSES EXTERNAL GENERAL,"EMPLOYMENT AGENCIES, TEMPORARY HELP SERVICES"
19/10/2020,LAC REVWS & CP CONIF,WWW.UK.INSIGHT.COM,386.71,EQUIPMENT,DIRECT MARKETING-CATALOG MERCHANTS
19/10/2020,TRANSPORT,PAYPAL  VARIDESK,365.00,FURNITURE,OFFICE AND COMMERCIAL FURNITURE
20/10/2020,TRANSPORT,R S RECOVERY SER,"1,836.00",VEHICLE REPAIRS AND MAINTENANCE,TOWING SERVICES
20/10/2020,ACL CENTRAL EXPENDITURE,FIN TRAINING & DEV,"1,080.00",SUBSCRIPTIONS,SCHOOLS & EDUCATIONAL SVC-NOT ELSEWHERE CLASSIFIED
20/10/2020,FAIRCROFT COMMUNITY HOME,PARKDEAN RESORTS H,779.00,EDUC VISITS/HOLS/CAMPS/TOYS,CAMPGROUNDS AND TRAILER PARKS
20/10/2020,MOVES,ENTERPRISE RENT A CAR,503.96,EQUIPMENT,ENTERPRISE RENT-A-CAR
20/10/2020,TRANSPORT,EBRO VALVES LTD,283.18,VEHICLE REPAIRS AND MAINTENANCE,MISCELLANEOUS AND SPECIALTY RETAIL STORES
21/10/2020,TRANSPORT,AMAZON.CO.UK VU2J80B45,762.00,EQUIPMENT,DIRECT MARKETING-OTHER DIRECT MARKETERS/NOT ELSEW.
21/10/2020,RECRUITMENT,INDEED,600.36,STAFF ADVERTISING ,BUSINESS SERVICES-NOT ELSEWHERE CLASSIFIED
21/10/2020,COVID19,AMZNMKTPLACE,526.47,EQUIPMENT,MISCELLANEOUS AND SPECIALTY RETAIL STORES
21/10/2020,BURBANK COMMUNITY HOME,SAINSBURYS TO YOU 0686,335.13,PURCHASE OF FOOD (RAW MATERIALS),"GROCERY STORES, SUPERMARKETS"
22/10/2020,DISABLED CHILDREN RESOURCES,PREMIER INN 44537770,"2,788.00",ADAPTATIONS,PREMIER INN
22/10/2020,FIRE & RESCUE COMMUNITY SAFETY,SLRHUT,"2,386.44",EQUIPMENT,CAMERA AND PHOTOGRAPHIC SUPPLY STORES
22/10/2020,SPEECH & LANGUAGE THERAPY,GL-ASSESMENT.CO.UK,418.67,EQUIPMENT,BOOK STORES
22/10/2020,TRANSPORT,AMZNMKTPLACE,351.96,FURNITURE,MISCELLANEOUS AND SPECIALTY RETAIL STORES
22/10/2020,APPLEWOOD,ASDA GROCERIES ONLINE,295.98,PURCHASE OF FOOD (RAW MATERIALS),"GROCERY STORES, SUPERMARKETS"
23/10/2020,TRAINING AND DEVELOPMENT,FUTURE INNS CARDIFF,"1,862.00",TRAINING EXPENSES EXTERNAL GENERAL,"LODGING-HOTELS,MOTELS,RESORTS-NOT CLASSIFIED"
23/10/2020,NW NIL RECOURSE TO PUBLIC FUNDS CARE,HOUSE OF FISHER LTD,"1,464.50",INDEPENDENT LIVING PLACEMENTS,"LODGING-HOTELS,MOTELS,RESORTS-NOT CLASSIFIED"
23/10/2020,RIGHTS & PARTICIPATION TEAM,INFORM PRINTED SOLUTIO,900.00,EDUC VISITS/HOLS/CAMPS/TOYS,MEN'S AND WOMEN'S CLOTHING STORES
23/10/2020,SERVICE DELIVERY RESOURCES,0800 PROMOTE,762.60,FEES,PROFESSIONAL SERVICES-NOT ELSEWHERE CLASSIFIED
23/10/2020,NW CARE - NON-LAC CP & COURT,TRAVELODGE GB0000,557.79,INDEPENDENT LIVING PLACEMENTS,TRAVELODGE
23/10/2020,TRANSPORT,AMZNMKTPLACE,479.00,EQUIPMENT,MISCELLANEOUS AND SPECIALTY RETAIL STORES
23/10/2020,COUNTY HALL,AMZNMKTPLACE AMAZON.CO,368.34,EQUIPMENT,MISCELLANEOUS AND SPECIALTY RETAIL STORES
23/10/2020,TRANSPORT,PAYPAL  NISBETS,315.58,EQUIPMENT,"COMMERCIAL EQUIPMENT, NOT ELSEWHERE CLASSIFIED"
25/10/2020,COMMUNICATIONS,GOOGLE  ADS2060179426,500.00,ADVERTISING (STATUTORY NOTICES),ADVERTISING SERVICES
25/10/2020,TRANSPORT,AMAZON.CO.UK MC5TP8QR4,299.00,EQUIPMENT,DIRECT MARKETING-OTHER DIRECT MARKETERS/NOT ELSEW.
26/10/2020,NW EDUCATION PSYCHOLOGISTS,AMAZON.CO.UK MC9K75DC4,440.96,CURRIC BOOKS,DIRECT MARKETING-OTHER DIRECT MARKETERS/NOT ELSEW.
26/10/2020,NW EDUCATION PSYCHOLOGISTS,AMAZON.CO.UK MC29I3DY4,385.84,CURRIC BOOKS,DIRECT MARKETING-OTHER DIRECT MARKETERS/NOT ELSEW.
26/10/2020,MEADOWSIDE,AMAZON.CO.UK MC5O16DJ4,345.39,CLEANING AND DOMESTIC SUPPLIES,DIRECT MARKETING-OTHER DIRECT MARKETERS/NOT ELSEW.
26/10/2020,MEADOWSIDE,AMAZON.CO.UK MC7SV6DF4,345.39,CLEANING AND DOMESTIC SUPPLIES,DIRECT MARKETING-OTHER DIRECT MARKETERS/NOT ELSEW.
27/10/2020,TRANSPORT,VAMPED LTD,"1,224.00",VEHICLE REPAIRS AND MAINTENANCE,AUTOMOTIVE BODY REPAIR SHOPS
27/10/2020,RECRUITMENT,INDEED,600.01,STAFF ADVERTISING ,BUSINESS SERVICES-NOT ELSEWHERE CLASSIFIED
27/10/2020,SEN ADAPTATIONS IN SCHOOLS,PAYPAL  ESSENTIALAI,542.71,EQUIPMENT,DENTAL/LAB/MED/OPHTHALMIC HOSP EQUIP & SUPPLIES
27/10/2020,SOLD ESTATES MANAGEMENT,AUTOGLASS,452.82,VEHICLE REPAIRS AND MAINTENANCE,"AUTOMOTIVE PARTS, ACCESSORIES STORES"
27/10/2020,QUADRANT COURT WOKING,AMZNMKTPLACE,365.00,FURNITURE,MISCELLANEOUS AND SPECIALTY RETAIL STORES
28/10/2020,COMMUNICATIONS TEAM,PAYPAL  LGCOMMS2018,500.00,TRAINING USING EXTERNAL PROVIDERS,"ORGANIZATIONS, MEMBERSHIP-NOT ELSEWHERE CLASSIFIED"
28/10/2020,LOWER MOLE COUNTRYSIDE PROJECT,SPLIT - VEHICLE RUNNING COSTS (89.54%),469.53,VEHICLE REPAIRS AND MAINTENANCE,AUTOMOTIVE TIRE STORES
28/10/2020,STAFF OFFICE,ROYAL BRITISH LEGION P,277.50,PUBLICITY,"ORGANIZATIONS, CHARITABLE AND SOCIAL SERVICES"
29/10/2020,CORPORATE GROUP - LEGAL SERVICES,AMZNMKTPLACE AMAZON.CO,499.98,STATIONERY,MISCELLANEOUS AND SPECIALTY RETAIL STORES
29/10/2020,PE/CDT MAINTENANCE OVERHEADS,EPSOM AND EWELL BOROUG,429.28,TRADE REFUSE,GOVERNMENT SERVICES-NOT ELSEWHERE CLASSIFIED
29/10/2020,PE/CDT MAINTENANCE OVERHEADS,FORMECH,400.20,EQUIPMENT,INDUSTRIAL SUPPLIES NOT ELSEWHERE CLASSIFIED
29/10/2020,ACT,WWW.NOTA.CO.UK,390.00,TRAINING USING EXTERNAL PROVIDERS,"ORGANIZATIONS, CHARITABLE AND SOCIAL SERVICES"
29/10/2020,COVID19 PPE,AMZNMKTPLACE AMAZON.CO,338.96,COMPUTER HARDWARE,MISCELLANEOUS AND SPECIALTY RETAIL STORES
29/10/2020,FIRE & RESCUE COMMUNITY SAFETY,AMZNMKTPLACE,331.00,EQUIPMENT,MISCELLANEOUS AND SPECIALTY RETAIL STORES
29/10/2020,YOUTH OFFER SERVICE,SCREWFIX DIRECT,319.91,EQUIPMENT,"BUILDING MATERIALS, LUMBER STORES"
29/10/2020,DOWNLANDS COUNTRYSIDE PROJECT,HONEY BROTHERS LTD,273.98,"CLOTHING, UNIFORM AND LAUNDRY",HARDWARE EQUIPMENT AND SUPPLIES
30/10/2020,DEMOCRATIC SERVICES TEAM,WWW.ICO.ORG.UK,"2,900.00",SUBSCRIPTIONS,GOVERNMENT SERVICES-NOT ELSEWHERE CLASSIFIED
30/10/2020,WOODLANDS COMMUNITY HOME,F.T. REFRIGERATION APP,"1,943.00",EQUIPMENT,HOUSEHOLD APPLIANCE STORES
30/10/2020,COMMUNICATIONS,GOOGLE  ADS2060179426,500.00,ADVERTISING (STATUTORY NOTICES),ADVERTISING SERVICES
30/10/2020,NW LAC AND LEAVING CARE,ARGOS LTD,298.93,EQUIPMENT,DISCOUNT STORES
31/10/2020,COMMUNICATIONS,FACEBK  FVRWNXAAK2,288.20,ADVERTISING (STATUTORY NOTICES),ADVERTISING SERVICES
01/11/2020,COUNRTYSIDE ESTATES TEAM,AMZNMKTPLACE,413.67,EQUIPMENT,MISCELLANEOUS AND SPECIALTY RETAIL STORES
01/11/2020,COVID19,AMZNMKTPLACE AMAZON.CO,295.80,EQUIPMENT,MISCELLANEOUS AND SPECIALTY RETAIL STORES
02/11/2020,5 SCH COTTAGES MAYFORD,WWW.JOHNLEWIS.COM,718.00,EQUIPMENT,DEPARTMENT STORES
02/11/2020,SE CARE - CP & COURT LAC,ARGOS LTD,386.95,OTHER COMMUNITY CARE VOL,DISCOUNT STORES
02/11/2020,THE ANNEX@84,IZ  PEACOCKS DELICATES,325.18,PURCHASE OF FOOD (RAW MATERIALS),"MISC FOOD STORE-CONVENIENCE,MRKT,SPLTY,VENDNG MACS"
02/11/2020,STRATEGIC NETWORK RESILIENCE,RUSSETTS DEVELOPMENTS,317.33,EQUIPMENT,MISCELLANEOUS AND SPECIALTY RETAIL STORES
02/11/2020,KARIBU COMMUNITY HOME,SAINSBURYS TO YOU 0683,290.75,PURCHASE OF FOOD (RAW MATERIALS),"GROCERY STORES, SUPERMARKETS"
02/11/2020,,ARGOS LTD,283.94,OTHER COMMUNITY CARE VOL,DISCOUNT STORES
03/11/2020,PE/CDT MAINTENANCE OVERHEADS,AW CHAMPION LTD,621.97,ITEMS PURCHASED FOR RE-SALE,"BUILDING MATERIALS, LUMBER STORES"
03/11/2020,SECTOR MANAGER,FAYE (UK) LTD,364.54,ITEMS PURCHASED FOR RE-SALE,MEN'S AND WOMEN'S CLOTHING STORES
03/11/2020,MOVES,ENTERPRISE RENT A CAR,351.98,EQUIPMENT,ENTERPRISE RENT-A-CAR
03/11/2020,ACL CENTRAL EXPENDITURE,GOOGLE  ADS2777015041,318.28,PUBLICITY,DIGITAL GOODS MULTI CATEGORY
03/11/2020,INSTRUMENT HIRE SHOP,WWW.ALDAUTOMOTIVE.CO.U,297.97,HIRE OF VEHICLES,BUSINESS SERVICES-NOT ELSEWHERE CLASSIFIED
03/11/2020,SURREY ARTS GENERAL,SP   CLEVELANDSTUDIOS,291.99,EQUIPMENT,COMPUTER SOFTWARE STORES
04/11/2020,ACL CENTRAL EXPENDITURE,ZOOM.US 888-799-9666,"1,656.98",COMPUTER SOFTWARE,TELECOM INCL PREPAID/RECURRING PHONE SVCS
04/11/2020,PE/CDT MAINTENANCE OVERHEADS,INDUSTRIAL RUBBER,"1,077.60",EQUIPMENT,MISCELLANEOUS AND SPECIALTY RETAIL STORES
04/11/2020,IT TRAINING,ASSIST KNOWLEDGE DECEL,864.00,TRAINING EXPENSES EXTERNAL GENERAL,BUSINESS SERVICES-NOT ELSEWHERE CLASSIFIED
04/11/2020,TRANSPORT,WWW.APEXLINVAR-SD.CO.U,629.50,EQUIPMENT,BUSINESS SERVICES-NOT ELSEWHERE CLASSIFIED
04/11/2020,CHALKMEAD,PAYPAL  ORANGEWHOLE EB,495.00,EQUIPMENT,CHEMICALS/ALLIED PRODUCTS NOT ELSEWHERE CLASSIFIED
04/11/2020,BURBANK COMMUNITY HOME,SAINSBURYS TO YOU 0686,255.57,PURCHASE OF FOOD (RAW MATERIALS),"GROCERY STORES, SUPERMARKETS"
05/11/2020,TRAINING AND DEVELOPMENT,QUEENS HOTEL,"1,600.00",TRAINING EXPENSES EXTERNAL GENERAL,"LODGING-HOTELS,MOTELS,RESORTS-NOT CLASSIFIED"
05/11/2020,TRANSPORT,AMZNMKTPLACE AMAZON.CO,548.29,COMPUTER HARDWARE,MISCELLANEOUS AND SPECIALTY RETAIL STORES
05/11/2020,SECTOR MANAGER,WWW.REXLONDONTRADE.COM,524.40,ITEMS PURCHASED FOR RE-SALE,"GIFT, CARD, NOVELTY AND SOUVENIR SHOPS"
05/11/2020,NW CARE - NON-LAC CP & COURT,PREMIER INN 44537770,309.00,INDEPENDENT LIVING PLACEMENTS,PREMIER INN
05/11/2020,LOCAL DELIVERY GROUP,IZ  HAMMOND AUTO,296.50,VEHICLE REPAIRS AND MAINTENANCE,MISCELLANEOUS REPAIR SHOPS AND RELATED SERVICES
06/11/2020,SPEECH & LANGUAGE THERAPY,WWW.ROMPALIMITED.COM,672.18,EQUIPMENT,MISCELLANEOUS AND SPECIALTY RETAIL STORES
06/11/2020,ACL CENTRAL EXPENDITURE,POTTERYCRAFTS LIMITED,495.56,EQUIPMENT,"COMMERCIAL EQUIPMENT, NOT ELSEWHERE CLASSIFIED"
06/11/2020,COVID19,THE ALTERNATIVE PALLET,488.90,EQUIPMENT,INDUSTRIAL SUPPLIES NOT ELSEWHERE CLASSIFIED
06/11/2020,CORE ACTIVITY                           ,CAPSULECRM.COM ZESTIA,331.20,COMPUTER SOFTWARE,DIRECT MARKETING-CONTINUITY/SUBSCRIPTION MERCHANTS
06/11/2020,THE ANNEX@84,MARKS&SPENCER PLC,281.99,EDUC VISITS/HOLS/CAMPS/TOYS,"GROCERY STORES, SUPERMARKETS"
07/11/2020,TRANSPORT,AMZNMKTPLACE AMAZON.CO,654.96,FURNITURE,MISCELLANEOUS AND SPECIALTY RETAIL STORES
08/11/2020,COUNRTYSIDE ESTATES TEAM,AMAZON.CO.UK M74681A44,478.00,EQUIPMENT,DIRECT MARKETING-OTHER DIRECT MARKETERS/NOT ELSEW.
09/11/2020,TRANSPORT,AMZNMKTPLACE,434.95,FURNITURE,MISCELLANEOUS AND SPECIALTY RETAIL STORES
09/11/2020,HEATHSIDE,AMZNMKTPLACE,261.05,EQUIPMENT,MISCELLANEOUS AND SPECIALTY RETAIL STORES
10/11/2020,SOLD ESTATES MANAGEMENT,CROWBOROUGH COACHW,903.23,VEHICLE REPAIRS AND MAINTENANCE,AUTOMOTIVE SERVICE SHOPS
10/11/2020,TRANSPORT,WWW.ANSONUK.CO.UK,831.60,OPERATIONAL FIRE EQUIPMENT,PROFESSIONAL SERVICES-NOT ELSEWHERE CLASSIFIED
10/11/2020,SOLD ESTATES MANAGEMENT,SP   GRASS WAREHOUSE,767.04,DAY TO DAY MAINTENANCE,COMPUTER SOFTWARE STORES
10/11/2020,RECRUITMENT,INDEED,602.77,STAFF ADVERTISING ,BUSINESS SERVICES-NOT ELSEWHERE CLASSIFIED
10/11/2020,TRANSPORT,PAYPAL  IMPACTBRAND,491.99,OPERATIONAL FIRE EQUIPMENT,"PACKAGE STORES, BEER, WINE, LIQUOR"
10/11/2020,TRANSPORT,LAWSONS REDHILL,324.00,VEHICLE REPAIRS AND MAINTENANCE,"BUILDING MATERIALS, LUMBER STORES"
10/11/2020,NW CARE - NON-LAC CP & COURT,PREMIER INN 44537770,297.00,INDEPENDENT LIVING PLACEMENTS,PREMIER INN
10/11/2020,ASSET PLANNING - OPERATIONS,WWW.ARCO.CO.UK,279.60,EQUIPMENT,INDUSTRIAL SUPPLIES NOT ELSEWHERE CLASSIFIED
11/11/2020,TRANSPORT,LIGHTHOUSE (UK) LTD,"1,240.20",VEHICLE REPAIRS AND MAINTENANCE,MISCELLANEOUS PUBLISHING AND PRINTING
11/11/2020,ACL CENTRAL EXPENDITURE,HELLO VENTURES B.V.,799.30,PUBLICITY,"QUICK COPY,REPRODUCTION AND BLUEPRINTING SERVICES"
11/11/2020,ACL CENTRAL EXPENDITURE,HELLO VENTURES B.V.,799.30,PUBLICITY,"QUICK COPY,REPRODUCTION AND BLUEPRINTING SERVICES"
11/11/2020,COVID19,SECURITY MATTERS,693.00,EQUIPMENT,HARDWARE STORES
11/11/2020,COVID19,SECURITY MATTERS,579.00,EQUIPMENT,HARDWARE STORES
11/11/2020,RESTORATIVE PRACTICE TEAM,AMZNMKTPLACE,443.88,OTHER COMMUNITY CARE VOL,MISCELLANEOUS AND SPECIALTY RETAIL STORES
11/11/2020,SE EDUCATION PSYCHOLOGISTS,AMAZON.CO.UK M74SS6XS4,413.40,EQUIPMENT,DIRECT MARKETING-OTHER DIRECT MARKETERS/NOT ELSEW.
11/11/2020,TRANSPORT,AIRENGINEER,354.13,VEHICLE REPAIRS AND MAINTENANCE,PROFESSIONAL SERVICES-NOT ELSEWHERE CLASSIFIED
11/11/2020,CHEYNE WALK COMMUNITY HOME,TESCO STORE 2560,338.01,PURCHASE OF FOOD (RAW MATERIALS),"GROCERY STORES, SUPERMARKETS"
11/11/2020,NW EDUCATION PSYCHOLOGISTS,HOGREFE LTD.,298.80,CURRICULUM CONSUMABLES,MISCELLANEOUS PUBLISHING AND PRINTING
11/11/2020,TRAINING AND DEVELOPMENT,AMZNMKTPLACE AMAZON.CO,298.00,COMPUTER HARDWARE,MISCELLANEOUS AND SPECIALTY RETAIL STORES
11/11/2020,YOUTH OFFER SERVICE,WARNER BROS. STUDIOS L,282.00,EDUC VISITS/HOLS/CAMPS/TOYS,TOURIST ATTRACTIONS AND EXHIBITS
12/11/2020,THE ANNEX@84,MOLE VALLEY PREMIE,"1,460.00",EDUC VISITS/HOLS/CAMPS/TOYS,LIMOUSINES AND TAXICABS
12/11/2020,SOLD ESTATES MANAGEMENT,WWW.GENERATIONHIREANDS,560.40,DAY TO DAY MAINTENANCE,"BUILDING MATERIALS, LUMBER STORES"
12/11/2020,DEVELOPMENT TEAM,MSFT   E0100CILUL,463.30,SUBSCRIPTIONS,"COMPUTERS, COMPUTER PERIPHERAL EQUIPMENT, SOFTWARE"
12/11/2020,SPLASH PROJECT,AO RETAIL LIMITED,444.00,EQUIPMENT,HOUSEHOLD APPLIANCE STORES
12/11/2020,DEVELOPMENT TEAM,MSFT   E0100CJ0UN,351.83,SUBSCRIPTIONS,"COMPUTERS, COMPUTER PERIPHERAL EQUIPMENT, SOFTWARE"
12/11/2020,BURBANK COMMUNITY HOME,SAINSBURYS.CO.UK,302.44,PURCHASE OF FOOD (RAW MATERIALS),"GROCERY STORES, SUPERMARKETS"
13/11/2020,TRANSPORT,WWW.THECOMPLETESERVICE,729.00,EQUIPMENT,HOUSEHOLD APPLIANCE STORES
13/11/2020,TRANSPORT,NORTHERN DIVER (INTNL),633.00,OPERATIONAL FIRE EQUIPMENT,SPORTING GOODS STORES
13/11/2020,LEGAL EXPENSES - CORPORATE GROUP,ROYAL COURTS OF JUSTIC,528.00,FEES,FINES
13/11/2020,ASSET PLANNING GROUP,WWW.JOHNLEWIS.COM,505.95,EQUIPMENT,DEPARTMENT STORES
13/11/2020,RUTH HOUSE,C BREWER & SONS,449.64,EQUIPMENT,"BUILDING MATERIALS, LUMBER STORES"
13/11/2020,ARUNDEL,DUNELM,447.94,EDUC VISITS/HOLS/CAMPS/TOYS,"EQUIP, FURNITURE, HOME FURNSHNGS STRS (EXCPT APPL)"
13/11/2020,SOLD MARKETING TEAM,HOO HOOTSUITE INC,360.00,PUBLICITY,BUSINESS SERVICES-NOT ELSEWHERE CLASSIFIED
13/11/2020,TRAINING AND DEVELOPMENT,BEACH DELI,271.60,REFRESHMENT COSTS,FAST FOOD RESTAURANTS
16/11/2020,NW NIL RECOURSE TO PUBLIC FUNDS CARE,HOUSE OF FISHER LTD,707.00,INDEPENDENT LIVING PLACEMENTS,"LODGING-HOTELS,MOTELS,RESORTS-NOT CLASSIFIED"
16/11/2020,COVID19,AMZNMKTPLACE,479.00,EQUIPMENT,MISCELLANEOUS AND SPECIALTY RETAIL STORES
16/11/2020,RIGHTS & PARTICIPATION TEAM,HALFORDS ON LINE,440.00,EDUC VISITS/HOLS/CAMPS/TOYS,BICYCLE SHOPS-SALES AND SERVICE
16/11/2020,TRANSPORT,AMZNMKTPLACE AMAZON.CO,429.00,EQUIPMENT,MISCELLANEOUS AND SPECIALTY RETAIL STORES
16/11/2020,KARIBU COMMUNITY HOME,SAINSBURYS TO YOU 0683,420.31,PURCHASE OF FOOD (RAW MATERIALS),"GROCERY STORES, SUPERMARKETS"
16/11/2020,STRATEGIC LEADERSHIP (CEO & ACEO),ZOOM.US 888-799-9666,387.95,COMPUTER SOFTWARE,TELECOM INCL PREPAID/RECURRING PHONE SVCS
16/11/2020,NW CARE - NON-LAC CP & COURT,PREMIER INN 44537770,292.00,INDEPENDENT LIVING PLACEMENTS,PREMIER INN
16/11/2020,ABBEYWOOD,TOTAL MOBILITY,276.00,RESIDENTIAL PRIV,MISCELLANEOUS AND SPECIALTY RETAIL STORES
16/11/2020,ABBEYWOOD,TOTAL MOBILITY,276.00,RESIDENTIAL PRIV,MISCELLANEOUS AND SPECIALTY RETAIL STORES
17/11/2020,TRANSPORT,THREADNEEDLE COMPANY L,"3,042.36","CLOTHING, UNIFORM AND LAUNDRY",MEN'S AND WOMEN'S CLOTHING STORES
17/11/2020,TRANSPORT,FLAMEPRO GLOBAL LTD,"1,590.46","CLOTHING, UNIFORM AND LAUNDRY",MEN'S/WOMEN'S/CHILDREN'S UNIFORMS/COMMERCIAL CLOTH
17/11/2020,HR - CENTRALISED TRAINING BUDGET(CONTGY),PHOENIXHSC.CO.UK,571.20,TRAINING EXPENSES EXTERNAL GENERAL,"COLLEGES, UNIV, PRO SCHOOLS, JUNIOR COLLEGES"
17/11/2020,SOLD DAY TO DAY OPERATIONS,CROOKES CLIMBING LTD.,467.47,EQUIPMENT,"COMMERCIAL EQUIPMENT, NOT ELSEWHERE CLASSIFIED"
17/11/2020,SOLD DAY TO DAY OPERATIONS,CROOKES CLIMBING LTD.,445.50,EQUIPMENT,"COMMERCIAL EQUIPMENT, NOT ELSEWHERE CLASSIFIED"
17/11/2020,DEMOCRATIC SERVICES TEAM,WWW.BSIGROUP.COM,352.87,SUBSCRIPTIONS,BUSINESS SERVICES-NOT ELSEWHERE CLASSIFIED
17/11/2020,CONTACT CENTRE,AMZNMKTPLACE AMAZON.CO,334.19,COMPUTER HARDWARE,MISCELLANEOUS AND SPECIALTY RETAIL STORES
17/11/2020,TARGETED INTERVENTION,DVLA VEHICLE TAX,267.50,VEHICLE REPAIRS AND MAINTENANCE,TAX PAYMENTS
18/11/2020,TRANSPORT,NORTHERN DIVER (INTNL),"2,612.40",OPERATIONAL FIRE EQUIPMENT,SPORTING GOODS STORES
18/11/2020,NE CARE - LAC,AIRBNB   HMYA2YQAWY,"1,872.60",INDEPENDENT LIVING PLACEMENTS,"LODGING-HOTELS,MOTELS,RESORTS-NOT CLASSIFIED"
18/11/2020,DIR CHILDRE FAM L&C,SHIZZOO LTD,"1,320.00",SUBSISTENCE AND CONFERENCE EXPENSES,"BANDS, ORCHESTRAS, & MISC ENTRTNRS-NOT ELSWHR CLAS"
18/11/2020,TRANSPORT,DELTA FIRE LTD,"1,015.41",VEHICLE REPAIRS AND MAINTENANCE,MISCELLANEOUS AND SPECIALTY RETAIL STORES
18/11/2020,4 ST JAMES AVENUE FARNHAM,WWW.SCS.CO.UK,908.97,EQUIPMENT,"EQUIP, FURNITURE, HOME FURNSHNGS STRS (EXCPT APPL)"
18/11/2020,TRAINING AND DEVELOPMENT,DVSA,500.00,TRAINING EXPENSES EXTERNAL GENERAL,GOVERNMENT SERVICES-NOT ELSEWHERE CLASSIFIED
18/11/2020,BURBANK COMMUNITY HOME,SAINSBURYS.CO.UK,408.69,PURCHASE OF FOOD (RAW MATERIALS),"GROCERY STORES, SUPERMARKETS"
18/11/2020,CLOSED LANDFILL,GOVNET EVENTS,390.00,TRAINING EXPENSES EXTERNAL GENERAL,"ORGANIZATIONS, MEMBERSHIP-NOT ELSEWHERE CLASSIFIED"
18/11/2020,FOSTERING SERVICE CENTRAL COSTS,IANSYST LTD,329.96,EQUIPMENT,"COMP PROGRAMING,DATA PRCSNG,INTGRTD SYS DSGN SRVS"
18/11/2020,NW SECTION 17 CARE,ONE WASTE CLEARANC LTD,300.00,OTHER COMMUNITY CARE VOL,"UTLTS-ELCTRC, GAS, HEATING OIL, SANITARY, WATER"
19/11/2020,TRANSPORT,WINDSCREEN FIXERS LTD,571.20,VEHICLE REPAIRS AND MAINTENANCE,AUTOMOTIVE SERVICE SHOPS
19/11/2020,TRANSPORT,EUROCARPARTS.COM,564.32,VEHICLE REPAIRS AND MAINTENANCE,"AUTOMOTIVE PARTS, ACCESSORIES STORES"
19/11/2020,TRANSPORT,WINDSCREEN FIXERS LTD,469.20,VEHICLE REPAIRS AND MAINTENANCE,AUTOMOTIVE SERVICE SHOPS
19/11/2020,TRANSPORT,WINDSCREEN FIXERS LTD,439.00,VEHICLE REPAIRS AND MAINTENANCE,AUTOMOTIVE SERVICE SHOPS
19/11/2020,RUTH HOUSE,FOWLES CRUSHED CONCRET,378.00,EQUIPMENT,BUSINESS SERVICES-NOT ELSEWHERE CLASSIFIED
19/11/2020,TRANSPORT,THOMASKNEALE.CO.UK,256.46,"CLOTHING, UNIFORM AND LAUNDRY","DRAPERY, UPOLSTERY, AND WINDOW COVERINGS STORES"
20/11/2020,COVID19,SENTURA GROUP,"1,920.00",OPERATIONAL FIRE EQUIPMENT,HARDWARE EQUIPMENT AND SUPPLIES
20/11/2020,COVID19,SECURITY MATTERS,"1,737.00",EQUIPMENT,HARDWARE STORES
20/11/2020,TRANSPORT,POSTURITE LTD,819.54,FURNITURE,BUSINESS SERVICES-NOT ELSEWHERE CLASSIFIED
22/11/2020,TRANSPORT,AMAZON.CO.UK MY4MZ7LC4,297.95,OPERATIONAL FIRE EQUIPMENT,DIRECT MARKETING-OTHER DIRECT MARKETERS/NOT ELSEW.
22/11/2020,DEMOCRATIC SERVICES TEAM,AMZNMKTPLACE AMAZON.CO,295.94,COMPUTER CONSUMABLES,MISCELLANEOUS AND SPECIALTY RETAIL STORES
22/11/2020,FIRE SERVICES IT,AMAZON.CO.UK MY29314I4,275.64,COMPUTER HARDWARE,DIRECT MARKETING-OTHER DIRECT MARKETERS/NOT ELSEW.
23/11/2020,DOWNLANDS COUNTRYSIDE PROJECT,ERNEST DOE / SONS,427.94,EQUIPMENT,MISC/AUTO/AIRCRAFT/FARM EQUIP  NOT ELSEWHERE CLASS
23/11/2020,MOVES,ENTERPRISE RENT A CAR,406.98,EQUIPMENT,ENTERPRISE RENT-A-CAR
23/11/2020,KARIBU COMMUNITY HOME,SAINSBURYS TO YOU 0683,352.45,PURCHASE OF FOOD (RAW MATERIALS),"GROCERY STORES, SUPERMARKETS"
23/11/2020,NE LAC AND LEAVING CARE,CURRYS ONLINE,274.99,EQUIPMENT,ELECTRONIC SALES
24/11/2020,NW NIL RECOURSE TO PUBLIC FUNDS CARE,HOUSE OF FISHER LTD,707.00,INDEPENDENT LIVING PLACEMENTS,"LODGING-HOTELS,MOTELS,RESORTS-NOT CLASSIFIED"
24/11/2020,HR - CENTRALISED TRAINING BUDGET(CONTGY),PHOENIXHSC.CO.UK,402.90,TRAINING EXPENSES EXTERNAL GENERAL,"COLLEGES, UNIV, PRO SCHOOLS, JUNIOR COLLEGES"
24/11/2020,RUTH HOUSE,BT.COM BUSINESS BP,393.36,TELECOMMUNICATION CHARGES,TELECOM INCL PREPAID/RECURRING PHONE SVCS
24/11/2020,DOWNLANDS COUNTRYSIDE PROJECT,EUROLOOS,384.00,DAY TO DAY MAINTENANCE,"UTLTS-ELCTRC, GAS, HEATING OIL, SANITARY, WATER"
24/11/2020,LIBERTAS COMMUNITY HOME,C BREWER & SONS,350.10,DAY TO DAY MAINTENANCE,"BUILDING MATERIALS, LUMBER STORES"
24/11/2020,PE/CDT MAINTENANCE OVERHEADS,WWW.RDGTOOLS.CO.UK,293.35,EQUIPMENT,"ARCHITECTURAL, ENGINEERING, AND SURVEYING SERVICES"
25/11/2020,TRANSPORT,PAYPAL  AO RETAIL EBAY,"1,676.00",EQUIPMENT,ELECTRONIC SALES
25/11/2020,YOUTH OFFER SERVICE,WWW.FORESTSCHOOLS.COM,797.00,EQUIPMENT,SCHOOLS & EDUCATIONAL SVC-NOT ELSEWHERE CLASSIFIED
25/11/2020,TRANSPORT POLICY TEAM,PTRC-TRAINING.CO.U,778.80,TRAINING EXPENSES EXTERNAL GENERAL,"COLLEGES, UNIV, PRO SCHOOLS, JUNIOR COLLEGES"
25/11/2020,ISPSB - ADAPTATIONS & IMPROVEMENTS,SQ  THRONE UK,588.00,EQUIPMENT,"HEALTH PRACTITIONERS, MEDICAL SRVCS-NOT ELSEWHERE"
25/11/2020,ISPSB - ADAPTATIONS & IMPROVEMENTS,SQ  THRONE UK,570.00,EQUIPMENT,"HEALTH PRACTITIONERS, MEDICAL SRVCS-NOT ELSEWHERE"
25/11/2020,COMLIANCE TEAM,HALFORDS AUTOCENTRE,538.84,VEHICLE REPAIRS AND MAINTENANCE,AUTOMOTIVE SERVICE SHOPS
25/11/2020,RUTH HOUSE,AO RETAIL LIMITED,508.00,EQUIPMENT,HOUSEHOLD APPLIANCE STORES
25/11/2020,BURBANK COMMUNITY HOME,SAINSBURYS.CO.UK,318.07,PURCHASE OF FOOD (RAW MATERIALS),"GROCERY STORES, SUPERMARKETS"
25/11/2020,,PREMIER INN 44537770,292.00,INDEPENDENT LIVING PLACEMENTS,PREMIER INN
25/11/2020,DOWNLANDS COUNTRYSIDE PROJECT,KWAZAR UK LTD,270.00,EQUIPMENT,AGRICULTURAL COOPERATIVES
25/11/2020,RBDM - GENERAL,AMZNMKTPLACE,263.92,TELECOMMUNICATION CHARGES,MISCELLANEOUS AND SPECIALTY RETAIL STORES
26/11/2020,TRANSPORT,THREADNEEDLE COMPANY L,"2,359.44","CLOTHING, UNIFORM AND LAUNDRY",MEN'S AND WOMEN'S CLOTHING STORES
26/11/2020,ASSET PLANNING GROUP,WWW.JOHNLEWIS.COM,855.95,EQUIPMENT,DEPARTMENT STORES
26/11/2020,CS BUSINESS SUPPORT WEST,WWW.OFFICEFURNITUREONL,355.20,FURNITURE,OFFICE AND COMMERCIAL FURNITURE
27/11/2020,SE LAC AND LEAVING CARE,ARGOS LTD,704.97,EQUIPMENT,DISCOUNT STORES
27/11/2020,TRANSPORT,THREADNEEDLE COMPANY L,648.00,"CLOTHING, UNIFORM AND LAUNDRY",MEN'S AND WOMEN'S CLOTHING STORES
27/11/2020,RUTH HOUSE,AO RETAIL LIMITED,379.00,EQUIPMENT,HOUSEHOLD APPLIANCE STORES
28/11/2020,TRANSPORT,AMAZON.CO.UK MY9WG4G34,399.00,EQUIPMENT,DIRECT MARKETING-OTHER DIRECT MARKETERS/NOT ELSEW.
29/11/2020,MID AREA FINANCE TEAM,WWW.MATTRESSONLINE.CO.,537.70,EQUIPMENT,"EQUIP, FURNITURE, HOME FURNSHNGS STRS (EXCPT APPL)"
29/11/2020,COMMUNICATIONS,GOOGLE  ADS2060179426,326.88,ADVERTISING (STATUTORY NOTICES),"COMP PROGRAMING,DATA PRCSNG,INTGRTD SYS DSGN SRVS"
30/11/2020,TRAINING AND DEVELOPMENT,ROUNDABOUT HOTEL,"1,300.00",TRAINING EXPENSES EXTERNAL GENERAL,"LODGING-HOTELS,MOTELS,RESORTS-NOT CLASSIFIED"
30/11/2020,TRANSPORT,PURFLEET COMMERCIA,463.85,VEHICLE REPAIRS AND MAINTENANCE,AUTOMOTIVE SERVICE SHOPS
30/11/2020,TRANSPORT,AQUACHECK ENGINEERING,377.16,OPERATIONAL FIRE EQUIPMENT,INDUSTRIAL SUPPLIES NOT ELSEWHERE CLASSIFIED
30/11/2020,KARIBU COMMUNITY HOME,SAINSBURYS TO YOU 0038,337.59,PURCHASE OF FOOD (RAW MATERIALS),"GROCERY STORES, SUPERMARKETS"
30/11/2020,TRAINING AND DEVELOPMENT,PAYPAL  ENRICOSMOG,294.00,TRAINING EXPENSES EXTERNAL GENERAL,OFFICE AND COMMERCIAL FURNITURE
30/11/2020,IMT CRITICAL ENVIRONMENTS,SETON,269.99,EQUIPMENT,"DURABLE GOODS, NOT ELSEWHERE CLASSIFIED"
30/11/2020,TRAINING AND DEVELOPMENT,WWW.RRC.CO.UK,255.00,TRAINING EXPENSES EXTERNAL GENERAL,"COLLEGES, UNIV, PRO SCHOOLS, JUNIOR COLLEGES"
01/12/2020,HIGHWAY DESIGN & DELIVERY,THOMAS TELFORD LIMIT,"2,146.80",TRAINING EXPENSES EXTERNAL GENERAL,SCHOOLS & EDUCATIONAL SVC-NOT ELSEWHERE CLASSIFIED
01/12/2020,RUTH HOUSE,INTERIOR GOODS DIRECT,"1,693.99",PURCHASE OF FOOD (RAW MATERIALS),MISCELLANEOUS HOUSE FURNISHING SPECIALTY SHOPS
01/12/2020,PE/CDT MAINTENANCE OVERHEADS,FLAMEFAST UK LTD,433.20,EQUIPMENT,HARDWARE EQUIPMENT AND SUPPLIES
01/12/2020,COVID19,AMZNMKTPLACE,399.80,EQUIPMENT,MISCELLANEOUS AND SPECIALTY RETAIL STORES
01/12/2020,COVID19,AMZNMKTPLACE,399.80,EQUIPMENT,MISCELLANEOUS AND SPECIALTY RETAIL STORES
01/12/2020,COVID19,AMZNMKTPLACE AMAZON.CO,399.80,EQUIPMENT,MISCELLANEOUS AND SPECIALTY RETAIL STORES
01/12/2020,SURREY ARTS GENERAL,TRADE SKILLS 4 U LTD,395.00,TRAINING EXPENSES EXTERNAL GENERAL,"SCHOOLS, BUSINESS AND SECRETARIAL"
01/12/2020,HIGHWAY DESIGN & DELIVERY,HALFORDS ON LINE,380.00,EQUIPMENT,BICYCLE SHOPS-SALES AND SERVICE
01/12/2020,HIGHWAY DESIGN & DELIVERY,AMZNMKTPLACE AMAZON.CO,337.53,EQUIPMENT,MISCELLANEOUS AND SPECIALTY RETAIL STORES
01/12/2020,RECRUITMENT,INDEED,291.10,EQUIPMENT,BUSINESS SERVICES-NOT ELSEWHERE CLASSIFIED
02/12/2020,,GATWICK INN HOTEL,"1,200.00",INDEPENDENT LIVING PLACEMENTS,"LODGING-HOTELS,MOTELS,RESORTS-NOT CLASSIFIED"
02/12/2020,MANOR GREEN ROAD,EPSOM AND EWELL BOROUG,945.00,CE02 WORKS,GOVERNMENT SERVICES-NOT ELSEWHERE CLASSIFIED
02/12/2020,TRANSPORT,PROTECT SIGNS,713.40,OPERATIONAL FIRE EQUIPMENT,"COMMERCIAL ART, GRAPHICS, PHOTOGRAPHY"
02/12/2020,SERVICE DELIVERY RESOURCES,AMZNMKTPLACE,515.97,TELECOMMUNICATION CHARGES,MISCELLANEOUS AND SPECIALTY RETAIL STORES
02/12/2020,BURBANK COMMUNITY HOME,SAINSBURYS.CO.UK,320.39,PURCHASE OF FOOD (RAW MATERIALS),"GROCERY STORES, SUPERMARKETS"
02/12/2020,NW NIL RECOURSE TO PUBLIC FUNDS CARE,PREMIER INN 44537770,285.00,INDEPENDENT LIVING PLACEMENTS,PREMIER INN
02/12/2020,CHALKMEAD,AMZNMKTPLACE AMAZON.CO,255.85,DAY TO DAY MAINTENANCE,MISCELLANEOUS AND SPECIALTY RETAIL STORES
02/12/2020,TRANSPORT,SP SERVICES,255.60,OPERATIONAL FIRE EQUIPMENT,DENTAL/LAB/MED/OPHTHALMIC HOSP EQUIP & SUPPLIES
03/12/2020,TRAINING AND DEVELOPMENT,WWW.STORE.CIPD.CO.UK,"1,548.00",SUBSISTENCE AND CONFERENCE EXPENSES,PROFESSIONAL SERVICES-NOT ELSEWHERE CLASSIFIED
03/12/2020,YOUTH OFFER SERVICE,SP   FOREST SCHOOLS,897.00,TRAINING USING EXTERNAL PROVIDERS,COMPUTER SOFTWARE STORES
03/12/2020,YOUTH OFFER SERVICE,SP   FOREST SCHOOLS,897.00,TRAINING USING EXTERNAL PROVIDERS,COMPUTER SOFTWARE STORES
03/12/2020,YOUTH OFFER SERVICE,SP   FOREST SCHOOLS,897.00,TRAINING USING EXTERNAL PROVIDERS,COMPUTER SOFTWARE STORES
03/12/2020,ACL CENTRAL EXPENDITURE,COOKSON PRECIOUS M,819.47,EQUIPMENT,"PRECIOUS STONES AND METALS, WATCHES AND JEWELRY"
03/12/2020,SAFE DRIVE STAY ALIVE                   ,AMAZON.CO.UK MY7IB3SI4,600.00,PUBLICITY,DIRECT MARKETING-OTHER DIRECT MARKETERS/NOT ELSEW.
03/12/2020,TRAVEL AND TRANSPORT GROUP,DECATHLON UK LIMITED,474.96,EQUIPMENT,SPORTING GOODS STORES
03/12/2020,MALLOW CRESCENT,XL DISPLAYS LTD,434.40,EQUIPMENT,MISCELLANEOUS GENERAL MERCHANDISE
03/12/2020,ACL CENTRAL EXPENDITURE,GOOGLE  ADS2777015041,336.81,PUBLICITY,DIGITAL GOODS MULTI CATEGORY
03/12/2020,INSTRUMENT HIRE SHOP,WWW.ALDAUTOMOTIVE.CO.U,297.97,HIRE OF VEHICLES,BUSINESS SERVICES-NOT ELSEWHERE CLASSIFIED
04/12/2020,FOSTERING SERVICE CENTRAL COSTS,SIGHT AND SOUND TECHNO,"5,000.00",EQUIPMENT,"COMPUTERS, COMPUTER PERIPHERAL EQUIPMENT, SOFTWARE"
04/12/2020,FOSTERING SERVICE CENTRAL COSTS,SIGHT AND SOUND TECHNO,"1,642.60",EQUIPMENT,"COMPUTERS, COMPUTER PERIPHERAL EQUIPMENT, SOFTWARE"
04/12/2020,TRAINING PROPERTY,WWW.SCS.CO.UK,"1,058.97",,"EQUIP, FURNITURE, HOME FURNSHNGS STRS (EXCPT APPL)"
04/12/2020,RECRUITMENT,GBP WINTERBURN MEDIA L,780.00,SUBSCRIPTIONS,ADVERTISING SERVICES
04/12/2020,TRAINING PROPERTY,DUNELM,350.95,EQUIPMENT,"EQUIP, FURNITURE, HOME FURNSHNGS STRS (EXCPT APPL)"
04/12/2020,ACL CENTRAL EXPENDITURE,COOKSON PRECIOUS M,288.00,EQUIPMENT,"PRECIOUS STONES AND METALS, WATCHES AND JEWELRY"
04/12/2020,TRAINING AND DEVELOPMENT,AMZNMKTPLACE AMAZON.CO,265.28,EQUIPMENT,MISCELLANEOUS AND SPECIALTY RETAIL STORES
05/12/2020,COMMUNICATIONS,FACEBK Z2GEPWJYA2,300.00,STAFF ADVERTISING ,ADVERTISING SERVICES
06/12/2020,CORE ACTIVITY                           ,CAPSULECRM.COM ZESTIA,331.20,COMPUTER SERVICES,DIRECT MARKETING-CONTINUITY/SUBSCRIPTION MERCHANTS
07/12/2020,DIGITAL PROGRAMME,CONNECTEDTHINGS,"1,187.40",COMPUTER HARDWARE,"CONSULTING, MANAGEMENT, AND PUBLIC RELATIONS SVCS"
07/12/2020,SE SECTION 17 CARE,EASYJET00 000K1XNXD2,598.97,NON-STAFF RELATED TRANSPORT COSTS,EASYJET
07/12/2020,TRAINING AND DEVELOPMENT,DVSA,500.00,TRAINING EXPENSES EXTERNAL GENERAL,GOVERNMENT SERVICES-NOT ELSEWHERE CLASSIFIED
07/12/2020,TRANSPORT,TAIL LIFT SERVICES,374.40,VEHICLE REPAIRS AND MAINTENANCE,AUTOMOTIVE BODY REPAIR SHOPS
07/12/2020,MISC EDCAT SUPPORT,WWW.CIMAGLOBAL.COM,297.00,FEES,"COLLEGES, UNIV, PRO SCHOOLS, JUNIOR COLLEGES"
07/12/2020,CHEYNE WALK COMMUNITY HOME,AMZNMKTPLACE,274.00,EQUIPMENT,MISCELLANEOUS AND SPECIALTY RETAIL STORES
07/12/2020,APPLEWOOD,KOLLER ENGINEERING LTD,261.00,VEHICLE REPAIRS AND MAINTENANCE,DENTAL/LAB/MED/OPHTHALMIC HOSP EQUIP & SUPPLIES
08/12/2020,NE LAC AND LEAVING CARE,ARGOS LTD,532.92,OTHER COMMUNITY CARE VOL,DISCOUNT STORES
08/12/2020,WOODLANDS COMMUNITY HOME,PROVISIONS (79.23%),425.32,PURCHASE OF FOOD (RAW MATERIALS),"GROCERY STORES, SUPERMARKETS"
08/12/2020,KARIBU COMMUNITY HOME,SAINSBURYS TO YOU 0683,388.17,PURCHASE OF FOOD (RAW MATERIALS),"GROCERY STORES, SUPERMARKETS"
08/12/2020,ACCESS 2 EDUCATION NE NON-MEDICAL,AMAZON.CO.UK MS2C39FM4,312.80,BOOKS,DIRECT MARKETING-OTHER DIRECT MARKETERS/NOT ELSEW.
08/12/2020,BARNFIELD,CURRYS ONLINE,299.99,DAY TO DAY MAINTENANCE,ELECTRONIC SALES
08/12/2020,NW NIL RECOURSE TO PUBLIC FUNDS CARE,PREMIER INN 44537770,286.00,INDEPENDENT LIVING PLACEMENTS,PREMIER INN
08/12/2020,NW NIL RECOURSE TO PUBLIC FUNDS CARE,PREMIER INN 44537770,282.00,INDEPENDENT LIVING PLACEMENTS,PREMIER INN
08/12/2020,TRANSPORT,HYDRAULIC FLEET SOLUTI,278.40,VEHICLE REPAIRS AND MAINTENANCE,"ARCHITECTURAL, ENGINEERING, AND SURVEYING SERVICES"
08/12/2020,TRAINING PROPERTY,WWW.FFX.CO.UK,275.00,EQUIPMENT,"BUILDING MATERIALS, LUMBER STORES"
08/12/2020,ARUNDEL,AO RETAIL LIMITED,269.00,EQUIPMENT,HOUSEHOLD APPLIANCE STORES
08/12/2020,ACL CENTRAL EXPENDITURE,WWW.RRPACKAGING.CO.UK,250.69,EQUIPMENT,MISCELLANEOUS GENERAL MERCHANDISE
09/12/2020,TRANSPORT,NORTHERN DIVER (INTNL),"4,943.40",OPERATIONAL FIRE EQUIPMENT,SPORTING GOODS STORES
09/12/2020,SE LOOKED AFTER TEAM,C2E764900185C UKVI,"3,199.00",FEES,GOVERNMENT SERVICES-NOT ELSEWHERE CLASSIFIED
09/12/2020,YOUTH OFFER SERVICE,NORBURY PARK WOOD PROD,981.59,EQUIPMENT,MISCELLANEOUS GENERAL MERCHANDISE
09/12/2020,RUTH HOUSE,CURRYS ONLINE,809.97,EQUIPMENT,ELECTRONIC SALES
09/12/2020,TRANSPORT,D & R ENGINEERING,461.92,VEHICLE REPAIRS AND MAINTENANCE,BOAT DEALERS
09/12/2020,BURBANK COMMUNITY HOME,SAINSBURYS.CO.UK,331.46,PURCHASE OF FOOD (RAW MATERIALS),"GROCERY STORES, SUPERMARKETS"
09/12/2020,NW TEACHERS,WPY DRAWING26AMP3BTALK,270.00,TRAINING EXPENSES EXTERNAL GENERAL,SCHOOLS & EDUCATIONAL SVC-NOT ELSEWHERE CLASSIFIED
10/12/2020,LIBERTAS COMMUNITY HOME,CLINICAL CLEAN,"5,000.00",CLEANING AND DOMESTIC SUPPLIES,BUSINESS SERVICES-NOT ELSEWHERE CLASSIFIED
10/12/2020,LIBERTAS COMMUNITY HOME,CLINICAL CLEAN,"1,900.00",CLEANING AND DOMESTIC SUPPLIES,BUSINESS SERVICES-NOT ELSEWHERE CLASSIFIED
10/12/2020,DEVELOPMENT TEAM,WWW.TXTLOCAL.COM,"1,260.00",SUBSCRIPTIONS,"CONSULTING, MANAGEMENT, AND PUBLIC RELATIONS SVCS"
11/12/2020,SUNNYDOWN SCHOOL CATERHAM,C2E765100337K UKVI,"1,199.00",FEES,GOVERNMENT SERVICES-NOT ELSEWHERE CLASSIFIED
11/12/2020,SPEECH & LANGUAGE THERAPY,WWW.ROMPALIMITED.COM,807.48,EQUIPMENT,MISCELLANEOUS AND SPECIALTY RETAIL STORES
11/12/2020,TRANSPORT,FIXINGS & POWERTOOL CE,498.67,EQUIPMENT,"BUILDING MATERIALS, LUMBER STORES"
11/12/2020,HEATHSIDE,ARGOS LTD,479.00,EQUIPMENT,DISCOUNT STORES
11/12/2020,WOODLANDS COMMUNITY HOME,DUNELM LTD,402.50,EQUIPMENT,"DRAPERY, UPOLSTERY, AND WINDOW COVERINGS STORES"
11/12/2020,ACL CENTRAL EXPENDITURE,GOOGLE  ADS2777015041,350.00,PUBLICITY,ADVERTISING SERVICES
12/12/2020,SE TARGETTED YOUTH SUPPORT,AMZNMKTPLACE,275.96,OTHER COMMUNITY CARE VOL,MISCELLANEOUS AND SPECIALTY RETAIL STORES
13/12/2020,VIRTUAL SCHOOL FOR LAC PUPIL PREMIUM,AMAZON.CO.UK MS8H070E4,400.00,TRAINING EXPENSES EXTERNAL GENERAL,DIRECT MARKETING-OTHER DIRECT MARKETERS/NOT ELSEW.
13/12/2020,DEVELOPMENT TEAM,MSFT   E0100CTCDP,353.77,SUBSCRIPTIONS,"COMPUTERS, COMPUTER PERIPHERAL EQUIPMENT, SOFTWARE"
14/12/2020,SURREY FRS CAPITAL EQUIPMENT,WEX PHOTOGRAPHIC,"2,400.00",CE02 FURNITURE AND EQUIPMENT,CAMERA AND PHOTOGRAPHIC SUPPLY STORES
14/12/2020,DEVELOPMENT TEAM,MSFT   E0100CTSGD,480.78,SUBSCRIPTIONS,"COMPUTERS, COMPUTER PERIPHERAL EQUIPMENT, SOFTWARE"
14/12/2020,KARIBU COMMUNITY HOME,SAINSBURYS.CO.UK,413.95,PURCHASE OF FOOD (RAW MATERIALS),"GROCERY STORES, SUPERMARKETS"
14/12/2020,SERVICE DELIVERY RESOURCES,THOMASKNEALE.CO.UK,409.20,OPERATIONAL FIRE EQUIPMENT,"DRAPERY, UPOLSTERY, AND WINDOW COVERINGS STORES"
14/12/2020,SOLD ESTATES MANAGEMENT,SP   GRASS WAREHOUSE,357.96,EQUIPMENT,COMPUTER SOFTWARE STORES
14/12/2020,LIBERTAS COMMUNITY HOME,IZ  PEACOCKS DELICATES,296.94,PURCHASE OF FOOD (RAW MATERIALS),"MISC FOOD STORE-CONVENIENCE,MRKT,SPLTY,VENDNG MACS"
15/12/2020,TRAINING PROPERTY,WWW.RUNNYMEDE.GOV.UK,"3,605.00",,GOVERNMENT SERVICES-NOT ELSEWHERE CLASSIFIED
15/12/2020,TRAINING PROPERTY,WWW.SURREYHEATH.GOV.UK,"3,500.00",,"THEATRICAL PRODUCERS(EXCL MOTION PIX),TICKET AGNCY"
15/12/2020,TRANSPORT,WWW.THECOMPLETESERVICE,729.00,EQUIPMENT,HOUSEHOLD APPLIANCE STORES
15/12/2020,TRANSPORT,NORTHERN DIVER (INTNL),418.20,OPERATIONAL FIRE EQUIPMENT,SPORTING GOODS STORES
15/12/2020,SERVICE DELIVERY RESOURCES,AMZNMKTPLACE,292.20,CLEANING MATERIALS,MISCELLANEOUS AND SPECIALTY RETAIL STORES
16/12/2020,TRANSPORT,GLASS'S INFORMATION SE,936.00,SUBSCRIPTIONS,BUSINESS SERVICES-NOT ELSEWHERE CLASSIFIED
16/12/2020,TRANSPORT,WWW.THECOMPLETESERVICE,859.00,EQUIPMENT,HOUSEHOLD APPLIANCE STORES
16/12/2020,CSF BUSINESS SUPPORT EDUCATION,KENT COUNTY COUNCIL,350.00,SUBSCRIPTIONS,GOVERNMENT SERVICES-NOT ELSEWHERE CLASSIFIED
17/12/2020,TRANSPORT,TOYE KENNING AND SPENC,"3,711.00","CLOTHING, UNIFORM AND LAUNDRY",MEN'S/WOMEN'S/CHILDREN'S UNIFORMS/COMMERCIAL CLOTH
17/12/2020,EMPLOYEE SERVICES,POSTURE PEOPLE LTD,554.27,OTHER COMMUNITY CARE VOL,"EQUIP, FURNITURE, HOME FURNSHNGS STRS (EXCPT APPL)"
17/12/2020,SURREY FRS CAPITAL EQUIPMENT,ULTIMA COMPUTERS L,522.00,CE03 CAPITAL VEHICLES AND PLANT,COMPUTER SOFTWARE STORES
17/12/2020,SE SECTION 17 CARE,EASYJET00 000K1XZ6QN,498.90,NON-STAFF RELATED TRANSPORT COSTS,EASYJET
17/12/2020,COMMUNICATIONS,FACEBK PHQ2VWJZA2,400.97,STAFF ADVERTISING ,ADVERTISING SERVICES
17/12/2020,TRANSPORT POLICY TEAM,INSTITUTION OF CIVIL,376.40,SUBSCRIPTIONS,"ORGANIZATIONS, MEMBERSHIP-NOT ELSEWHERE CLASSIFIED"
17/12/2020,TRANSPORT POLICY TEAM,INSTITUTION OF CIVIL,376.40,SUBSCRIPTIONS,"ORGANIZATIONS, MEMBERSHIP-NOT ELSEWHERE CLASSIFIED"
17/12/2020,NW CARE - LAC,ARGOS LTD,356.95,EQUIPMENT,DISCOUNT STORES
17/12/2020,TRAINING AND DEVELOPMENT,UK ASSOCIATION OF FIRE,300.00,SUBSISTENCE AND CONFERENCE EXPENSES,OTHER SERVICES (NOT ELSEWHERE CLASSIFIED)
17/12/2020,SW TEACHERS,WPY DRAWING26AMP3BTALK,270.00,TRAINING EXPENSES EXTERNAL GENERAL,SCHOOLS & EDUCATIONAL SVC-NOT ELSEWHERE CLASSIFIED
18/12/2020,NE CARE - LAC,AIRBNB   HMYA2YQAWY,"1,872.60",INDEPENDENT LIVING PLACEMENTS,"LODGING-HOTELS,MOTELS,RESORTS-NOT CLASSIFIED"
18/12/2020,SERVICE DELIVERY RESOURCES,WWW.PALLET2SHIP.CO,502.95,OPERATIONAL FIRE EQUIPMENT,"COURIER SVC-AIR & GROUND, FREIGHT FORWARDERS"
18/12/2020,TRANSPORT,NORTHERN DIVER (INTNL),502.20,OPERATIONAL FIRE EQUIPMENT,SPORTING GOODS STORES
18/12/2020,MALLOW CRESCENT,CURRYS ONLINE,429.00,COMPUTER HARDWARE,ELECTRONIC SALES
18/12/2020,CHALKMEAD,AMZNMKTPLACE,410.26,EDUC VISITS/HOLS/CAMPS/TOYS,MISCELLANEOUS AND SPECIALTY RETAIL STORES
18/12/2020,THE ANNEX@84,TRUFFLES CATERERS LIMI,310.26,PURCHASE OF FOOD (RAW MATERIALS),CATERERS
18/12/2020,STAFF OFFICE,AMZNMKTPLACE,299.52,COMPUTER HARDWARE,MISCELLANEOUS AND SPECIALTY RETAIL STORES
18/12/2020,TRANSPORT,STATIONERYU,295.68,OPERATIONAL FIRE EQUIPMENT,"OFFICE, SCHOOL SUPPLY, AND STATIONERY STORES"
21/12/2020,ACL CENTRAL EXPENDITURE,GOOGLE  ADS2777015041,500.00,PUBLICITY,ADVERTISING SERVICES
21/12/2020,WOODLANDS COMMUNITY HOME,PROVISIONS (93.23%),330.69,PURCHASE OF FOOD (RAW MATERIALS),"GROCERY STORES, SUPERMARKETS"
21/12/2020,COM BUSINESS SUPPORT,WWW.CORAM.ORG.UK,312.00,OTHER COMMUNITY CARE VOL,"ORGANIZATIONS, CHARITABLE AND SOCIAL SERVICES"
21/12/2020,ARUNDEL,ASDA GROCERIES ONLINE,260.37,REFRESHMENT COSTS,"GROCERY STORES, SUPERMARKETS"
22/12/2020,RUTH HOUSE,SAINSBURYS.CO.UK,490.01,PURCHASE OF FOOD (RAW MATERIALS),"GROCERY STORES, SUPERMARKETS"
22/12/2020,SE CARE - CP & COURT LAC,CURRYS ONLINE,259.99,OTHER COMMUNITY CARE VOL,ELECTRONIC SALES
22/12/2020,TRAINING AND DEVELOPMENT,BEACH DELI,253.70,REFRESHMENT COSTS,FAST FOOD RESTAURANTS
23/12/2020,NE LAC AND LEAVING CARE,ARGOS LTD,725.94,EQUIPMENT,DISCOUNT STORES
23/12/2020,SERVICE DELIVERY RESOURCES,AMZNMKTPLACE AMAZON.CO,533.13,TELECOMMUNICATION CHARGES,MISCELLANEOUS AND SPECIALTY RETAIL STORES
23/12/2020,TRANSPORT,PAYPAL  AO RETAIL,519.00,EQUIPMENT,ELECTRONIC SALES
23/12/2020,HAVEN GUILDFORD,WWW.OAKS ONLINE SHOPPI,436.50,CURRICULUM EQUIPMENT AND FURNITURE,TENT AND AWNING SHOPS
23/12/2020,BURBANK COMMUNITY HOME,SAINSBURYS.CO.UK,321.78,PURCHASE OF FOOD (RAW MATERIALS),"GROCERY STORES, SUPERMARKETS"
23/12/2020,NE LAC AND LEAVING CARE,ARGOS LTD,309.98,EQUIPMENT,DISCOUNT STORES
23/12/2020,ARUNDEL,ASDA GROCERIES ONLINE,261.07,REFRESHMENT COSTS,"GROCERY STORES, SUPERMARKETS"
24/12/2020,IMT TECHNICAL DELIVERY,MSFT   E0600D3S9R,"3,344.28",SUBSCRIPTIONS,"COMPUTERS, COMPUTER PERIPHERAL EQUIPMENT, SOFTWARE"
24/12/2020,SE SECTION 17 CARE,ARGOS LTD,359.99,EQUIPMENT,DISCOUNT STORES
27/12/2020,WEIGHT MANAGEMENT,AMZNMKTPLACE,795.89,EQUIPMENT,MISCELLANEOUS AND SPECIALTY RETAIL STORES
